Cogmind - Beta 14 @@@ ROGUE MODE // 2024.09.01 @ 21:42:50 Player: lyrabold Result: Heading to fleet! Performance ------------- Evolutions (9) 4500 Regions Visited (42) 8400 Robots Destroyed (974) 4870 Value Destroyed (52476) 52476 Prototype IDs (294) 5880 Alien Tech Used (11) 2200 Bonus (73424) 73424 TOTAL SCORE: 151750 Bonus ------- High Alert Combat Kills 12555 Follower Combat Kills 3732 Entered Garrisons 1000 Network Hubs Disabled 200 Met Imprinter 300 Acquired ECA 300 Met Zhirov 300 Met Warlord at Base 500 MAIN.C Attacked Warlord 500 Warlord Defense Kills 3210 Built Enhanced Grunts 300 Met R17 at Cetus 500 Used Core Reset Matrix 3000 Met R17 at Research 2000 Met Warlord at Research 2000 Scanned by Researcher 500 Recovered Sigix Corpse 4000 Destroyed MAIN.C Guards 500 Met MAIN.C 5000 Destroyed MAIN.C Shell 5000 Destroyed MAIN.C 10000 Met Architect 300 Destroyed A8 300 Destroyed A6 400 Destroyed A5 500 Destroyed A4 700 Destroyed A3 800 Destroyed A2 1000 Destroyed Architect 15000 Win 3000 Friendly Fire -3973 Cogmind --------- Core Integrity 577/1600 Matter 237/300 Energy 998/1020 System Corruption 4% Temperature Cool (11) Movement Treading (146) Location To Fleet Rendezvous Parts ------- > --- POWER (4) -------- Improved Quantum Reactor Zero-point Reactor Zero-point Reactor Zero-point Reactor > --- PROPULSION (6) --- Centrium Heavy Treads Biometal Heavy Treads Experimental Biometal Heavy Treads (fused) > --- UTILITY (13) ----- Huge Storage Unit Long-range Terrain Scanner Advanced Terrain Scan Processor Experimental Targeting Computer Experimental Core Analyzer Quantum Capacitor Experimental Phase Shifter Experimental Core Shielding Experimental Utility Shielding Centrium Heavy Armor Plating (fused) > --- WEAPON (2) ------- Compact HERF Cannon Null Cannon > --- INVENTORY (25) --- Zero-point Reactor Advanced Cryofiber Web Experimental Heat Sink Experimental Cooling System Experimental Coolant Injector Experimental Energy Well (600) Experimental Energy Well (600) Experimental Energy Well (600) Advanced Matter Compressor (400) Advanced Particle Charger Experimental Core Shielding Experimental Powered Armor Experimental Powered Armor Thermal Barrier AEGIS Remote Shield AEGIS Remote Shield Long-range Tractor Beam Microwarp Drive Cooled Nova Cannon Hellfire Missile Launcher Sigix Corpse Sigix Corpse Peak State ------------ > --- POWER ------------ Improved Quantum Reactor Improved Quantum Reactor Zero-point Reactor Zero-point Reactor > --- PROPULSION ------- Biometal Heavy Treads Experimental Biometal Heavy Treads Experimental Biometal Heavy Treads > --- UTILITY ---------- Advanced Cryofiber Web Experimental Heat Sink Huge Storage Unit Advanced Terrain Scan Processor Experimental Core Analyzer Quantum Capacitor SHELL Armor AEGIS Remote Shield Experimental System Purifier Long-range Tractor Beam > --- WEAPON ----------- Enhanced Gamma Rifle Cooled Nova Cannon > --- INVENTORY -------- Zero-point Reactor Zero-point Reactor Centrium Heavy Treads Experimental Coolant Injector Experimental Energy Well Experimental Energy Well Advanced Matter Compressor Long-range Terrain Scanner Experimental Cloaking Device Improved Utility Shielding Improved Utility Shielding Experimental Utility Shielding Thermal Barrier AEGIS Remote Shield Transdimensional Reconstructor Subatomic Replicator Microwarp Drive Vortex Shotgun Compact HERF Cannon Potential Cannon Null Cannon Hellfire Missile Launcher [Rating: 246] Favorites ----------- Power Zero-point Reactor Engine Cooled Ion Engine Power Core Light Neutrino Core Reactor Zero-point Reactor Propulsion Centrium Heavy Treads Treads Centrium Heavy Treads Wheel Wheel Flight Unit Makeshift Flight Unit Utility Huge Storage Unit Device Quantum Capacitor Storage Huge Storage Unit Processor Core Analyzer Hackware Improved Hacking Suite Protection Hardened Heavy Armor Plating Artifact Microwarp Drive Weapon Compact HERF Cannon Energy Gun Heavy Tesla Rifle Energy Cannon Compact HERF Cannon Ballistic Gun Enhanced Autogun Ballistic Cannon Heavy Mass Driver Launcher Long-range Missile Launcher Special Weapon Improved Remote Datajack Impact Weapon Flail Slashing Weapon Ionic Axe Special Melee Weapon Improved Datajack Build | -11 -10 -10 -9 -9 -9 -8 -8 -8 -8 -8 -7 -7 -7 -7 -7 -7 -7 -7 -6 -6 -6 -6 -6 -6 -5 -5 -5 -5 -4 -4 -4 -4 -4 -3 -3 -3 -2 -2 -2 -1 -1 -1 ------- Run | Yrd Mat Min Mat Sto Gar Mat Gar Mat Gar Mat Fac Gar Fac Gar Fac Low Low Zio Pro Fac Ext Cet Arc Hub Fac Upp Upp Zhi Pro Fac Upp Upp War Pro Res Tes Res Qua Sec Acc Com Ac0 Slots Evolved 18 | . . . 2 . . 2 . . . . 2 . . . . . . . . 2 . . . . 2 . . . . 2 . . . . 2 . 2 . . 2 . . Power 3 | . . . . . . . . . . . 1 . . . . . . . . . . . . . . . . . . . . . . . . . 1 . . 1 . . Propulsion 4 | . . . 1 . . 1 . . . . . . . . . . . . . . . . . . . . . . . . . . . . 2 . . . . . . . Utility 11 | . . . 1 . . 1 . . . . 1 . . . . . . . . 2 . . . . 2 . . . . 2 . . . . . . 1 . . 1 . . Weapon . | . . . . . . . . . . . . . . . . . . . . . . . . . . . . . . . . . . . . . . . . . . . Parts Attached 1540 | 7 33 4 37 32 22 50 12 29 36 11 47 33 22 25 56 8 6 3 11 31 16 15 7 48 41 29 16 10 29 88 15 16 37 20 102 86 36 64 106 61 88 95 Power 101 | 1 3 . 5 2 3 3 . 3 1 2 4 3 . 3 4 2 . . . 1 1 1 . 3 1 5 1 1 5 6 . . 3 3 . 3 2 6 4 1 10 5 Engine 24 | 1 1 . 5 2 2 1 . . 1 1 1 1 . 2 . 1 . . . . . . . . . 2 . . 3 . . . . . . . . . . . . . Core 19 | . 2 . . . . 1 . 2 . 1 3 2 . 1 4 1 . . . . . . . . . . . . . 1 . . 1 . . . . . . . . . Reactor 58 | . . . . . 1 1 . 1 . . . . . . . . . . . 1 1 1 . 3 1 3 1 1 2 5 . . 2 3 . 3 2 6 4 1 10 5 Propulsion 106 | 2 4 . 7 7 2 14 2 9 4 2 8 3 . 3 1 . 1 . . . . 2 . 3 3 2 . . 3 5 . . 1 . 7 5 1 . 1 1 2 1 Treads 102 | 2 2 . 7 7 2 14 2 9 4 2 7 3 . 3 1 . 1 . . . . 2 . 3 3 1 . . 3 5 . . 1 . 7 5 1 . 1 1 2 1 Leg . | . . . . . . . . . . . . . . . . . . . . . . . . . . . . . . . . . . . . . . . . . . . Wheel 3 | . 2 . . . . . . . . . 1 . . . . . . . . . . . . . . . . . . . . . . . . . . . . . . . Hover . | . . . . . . . . . . . . . . . . . . . . . . . . . . . . . . . . . . . . . . . . . . . Flight 1 | . . . . . . . . . . . . . . . . . . . . . . . . . . 1 . . . . . . . . . . . . . . . . Utility 812 | 2 7 . 5 8 5 13 2 1 8 2 17 10 13 4 26 1 5 . 3 22 10 6 4 17 13 9 4 3 7 42 9 7 18 9 79 66 29 57 95 59 52 63 Device 639 | 1 5 . 3 4 5 3 . . 1 2 9 6 8 2 13 1 4 . 3 19 9 4 3 9 11 4 3 2 6 33 6 1 11 7 71 58 27 50 82 55 41 57 Storage 17 | 1 2 . . . . 1 . . . . 1 . 1 . 1 . . . . . . . . 1 . . . . . . . 1 . 1 1 2 . 2 . . 2 . Processor 28 | . . . . . . 1 . . . . . . 1 . . . . . . 1 . 1 . 2 . 1 . . . 1 2 1 3 . 2 . 1 2 3 2 4 . Hackware 20 | . . . . . . 3 1 . 1 . 2 . 1 . 1 . . . . 1 . . . 2 . . . . . 2 . . . . 2 1 . . 1 1 1 . Protection 95 | . . . 2 4 . 5 1 1 6 . 5 4 2 2 11 . 1 . . 1 1 1 1 3 2 4 1 1 1 6 1 4 4 1 3 5 1 3 1 . 3 3 Artifact 13 | . . . . . . . . . . . . . . . . . . . . . . . . . . . . . . . . . . . . . . . 8 1 1 3 Weapon 521 | 2 19 4 20 15 12 20 8 16 23 5 18 17 9 15 25 5 . 3 8 8 5 6 3 25 24 13 11 6 14 35 6 9 15 8 16 12 4 1 6 . 24 26 Energy Gun 72 | 1 8 . 2 3 1 . . . 1 . 1 1 1 . 2 . . . . 2 2 2 2 12 11 2 1 1 . 4 1 . 1 2 . . . . . . 7 1 Energy Cannon 189 | . . . . 7 6 11 4 8 1 . . 3 5 8 5 . . . 1 1 . 2 . 7 10 6 1 1 5 12 1 1 9 4 11 10 4 1 4 . 15 25 Ballistic Gun 38 | 1 3 . 3 1 . 1 . . 11 3 6 4 . . 1 . . . 2 . . . 1 . . . . . . . . . . . . . . . . . 1 . Ballistic Cannon 82 | . 4 3 10 2 . . . 1 . . 4 5 1 . 9 3 . 2 4 3 1 . . . . 2 5 1 5 10 2 4 . . 1 . . . . . . . Launcher 78 | . 4 1 3 . 3 4 2 3 5 . 3 2 1 1 5 1 . . 1 1 . 2 . 5 2 3 2 . 4 5 1 3 2 2 2 2 . . 2 . 1 . Special Weapon 26 | . . . 1 . . . . . . . . . . 1 1 1 . 1 . 1 2 . . 1 1 . 2 3 . 4 1 1 3 . 2 . . . . . . . Impact Weapon 15 | . . . . . . 3 2 4 4 1 1 . . . . . . . . . . . . . . . . . . . . . . . . . . . . . . . Slashing Weapon 14 | . . . 1 2 2 . . . . . 1 2 . 4 2 . . . . . . . . . . . . . . . . . . . . . . . . . . . Piercing Weapon . | . . . . . . . . . . . . . . . . . . . . . . . . . . . . . . . . . . . . . . . . . . . Special Melee Weapon 7 | . . . . . . 1 . . 1 1 2 . 1 1 . . . . . . . . . . . . . . . . . . . . . . . . . . . . Unidentified Prototypes 68 | . . . 2 5 3 2 . 1 . . 5 . . 1 8 . . . . 1 . 2 . 2 . . . 3 . . . . 10 2 4 5 . 5 5 . 2 . Corrupted Parts 45 | . . . . . 3 . . . . 3 . 1 . . . . 1 . 1 . . . . 8 . . 1 . 4 1 . . . 4 . 3 . 1 . . 13 1 System Corruption 221 | . . . . . 15 . . . . 22 . 8 . . . . 7 . 6 . . . . 38 . . 10 . 17 10 . . . 15 . 15 . 1 . . 54 3 Parts Lost 72 | . 3 . 4 3 4 1 2 3 5 . 11 5 . 1 2 1 . . . 2 . . . 9 1 3 1 . 2 1 . . . . . . . 1 . . . 7 Power 17 | . 1 . 1 . . 1 . 1 . . 3 2 . 1 . . . . . 1 . . . 2 . 1 . . . . . . . . . . . 1 . . . 2 Propulsion 22 | . 2 . . 3 1 . 2 . 4 . 6 2 . . . . . . . . . . . 1 . . . . . . . . . . . . . . . . . 1 Utility 27 | . . . 3 . 2 . . 2 1 . 1 1 . . 2 1 . . . 1 . . . 3 1 2 1 . 2 1 . . . . . . . . . . . 3 Weapon 6 | . . . . . 1 . . . . . 1 . . . . . . . . . . . . 3 . . . . . . . . . . . . . . . . . 1 Highest Loss Streak 8 | . 2 . 2 3 2 1 1 1 3 . 8 4 . 1 1 1 . . . 1 . . . 5 1 2 1 . 1 1 . . . . . . . 1 . . . 2 To Critical Strikes 2 | . . . . . . . . . . . . . . . . . . . . . . . . . . . . . . . . . . . . . . . . . . 2 Average Slot Usage (%) 81 | . 98 100 97 95 96 99 99 99 99 100 88 89 91 89 75 68 68 67 68 67 66 72 70 74 92 86 87 80 84 81 77 77 76 73 73 74 72 72 72 73 75 78 Engine 1 | . 4 . 8 11 11 4 . . 1 8 4 4 . 8 4 . . . . . . . . . . 4 . . . 1 . . . . . . . . . . . . Core 3 | . 8 14 2 . . 4 9 5 . . 8 9 15 5 10 14 15 15 15 8 6 . . . . . . . . 1 . . . . . . . . . . . . Reactor 6 | . . . . . . . . 2 7 . . . . . . . . . . 2 6 11 13 12 11 5 10 11 10 6 10 10 7 5 4 6 12 12 12 14 16 15 Treads 17 | . 20 14 30 32 31 36 35 35 35 36 26 22 23 20 15 15 14 15 15 13 13 12 13 13 15 11 11 11 11 10 10 10 10 10 16 14 13 13 12 12 12 12 Device 14 | . 13 14 14 13 8 7 9 8 7 9 14 4 6 7 4 7 7 7 7 7 6 5 11 7 22 21 22 20 14 17 20 15 19 26 20 21 19 21 19 17 22 15 Storage 6 | . 14 14 11 11 11 9 9 9 9 9 7 7 7 7 7 7 7 7 7 6 6 6 6 6 5 5 5 5 5 5 5 5 5 5 4 4 4 4 4 4 4 4 Processor 6 | . . . . . . 4 9 9 9 9 7 7 7 7 7 7 7 7 7 8 6 6 6 6 5 3 5 5 5 6 10 10 5 5 9 9 9 6 5 8 8 14 Hackware 3 | . . . . . . 2 . . . . . 7 7 7 7 . . . . 4 6 6 . 5 11 6 5 5 5 12 10 10 9 5 2 . . . 2 5 . . Protection 6 | . . . 5 5 11 11 9 9 9 9 6 9 7 6 6 7 7 7 7 6 6 6 6 7 5 11 11 13 16 7 . 4 6 4 4 6 4 4 4 4 4 9 Energy Gun 1 | . 18 3 . . . . . . . . . . . . . . . . . . . 10 8 7 4 . . . . . . . . . . . . . . . . . Energy Cannon 5 | . . . . 17 21 17 17 14 . . . 3 14 12 2 . . . . . . 1 . 4 5 6 4 . 2 3 4 5 4 5 8 8 7 8 7 8 6 5 Ballistic Cannon 2 | . 4 21 19 2 . . . 2 . . 3 4 . . 5 6 7 5 6 5 5 . . . . 3 4 . 7 5 2 1 . . . . . . . . . . Peak Build Rating 246 | 7 13 13 17 27 32 48 41 53 55 52 73 72 69 83 95 89 89 88 88 110 113 125 126 126 132 131 129 132 134 143 150 150 162 163 177 196 212 213 227 241 246 243 Average Rating 124 | 6 10 12 14 20 26 39 40 43 50 50 60 66 65 73 80 86 88 85 87 104 108 121 122 118 123 120 126 120 125 131 148 145 148 158 171 184 208 209 213 225 235 232 On Entrance 104 | . 7 12 13 16 27 25 40 40 49 52 52 65 67 69 78 86 89 88 88 86 110 113 122 126 105 125 120 128 127 113 142 149 145 160 158 174 192 211 210 226 241 230 Naked Turns . | . . . . . . . . . . . . . . . . . . . . . . . . . . . . . . . . . . . . . . . . . . . Heaviest Build 228 | 11 51 54 60 62 62 114 107 112 111 105 131 131 127 119 140 140 138 138 140 152 156 161 161 164 157 155 147 151 159 169 169 159 173 176 180 186 206 205 208 224 228 219 Greatest Support 245 | 40 40 10 60 60 60 88 87 106 112 114 146 138 130 150 150 150 150 150 150 166 166 166 176 176 160 160 160 160 160 160 160 160 160 160 235 240 245 245 245 240 245 245 Greatest Overweight (x) 8 | . 5 5 5 1 1 1 1 1 1 . 7 1 . 1 . . . . . . 1 1 8 1 1 1 . . . 1 1 . 1 1 1 . . . . . . . Average Overweight (x) . | . 1 4 1 . . . 1 1 . . . . . . . . . . . . . . 4 . . . . . . . . . . . . . . . . . . . Largest Inventory Capacity 25 | 8 20 20 20 20 20 25 25 25 25 25 25 25 25 25 25 25 25 25 25 25 25 25 25 25 25 25 25 25 25 25 25 25 25 25 25 25 25 25 25 25 25 25 Average Capacity 24 | 7 16 20 20 20 20 24 25 25 25 25 25 25 25 25 25 25 25 25 25 25 25 25 25 25 25 25 25 25 25 25 25 25 25 25 25 25 25 25 25 25 25 25 Most Carried 25 | 5 20 20 20 20 20 25 25 25 25 25 25 25 25 25 25 25 25 25 25 25 25 25 25 25 25 25 24 25 25 25 25 25 25 25 25 25 25 25 25 25 25 25 Average Carried 23 | 3 14 20 19 19 18 23 23 24 24 24 24 24 24 24 24 24 24 24 24 22 24 24 24 24 23 24 23 24 24 24 24 24 24 24 24 24 24 24 24 24 24 24 Final Capacity 25 | 8 20 20 20 20 20 25 25 25 25 25 25 25 25 25 25 25 25 25 25 25 25 25 25 25 25 25 25 25 25 25 25 25 25 25 25 25 25 25 25 25 25 25 Final Carried 25 | 5 20 20 20 20 19 24 23 25 25 25 25 24 24 25 25 25 25 25 25 25 24 25 25 25 25 25 24 25 24 24 25 25 25 25 25 25 25 25 25 25 25 23 Class Distribution -------------------- 42% | Scavenger-Mutant 24% | Mutant 17% | Generator-Mutant 7% | Trapper-Mutant 3% | Hacker-Mutant 3% | Commander-Mutant Dominant Class ---------------- Scavenger-Mutant | -10/Materials Scavenger-Mutant | -10/Mines Scavenger-Mutant | -9/Materials Mutant | -9/Storage Mutant | -9/Garrison Scavenger-Mutant | -8/Materials Scavenger-Mutant | -8/Garrison Scavenger-Mutant | -8/Materials Mutant | -8/Garrison Mutant | -8/Materials Scavenger-Mutant | -7/Factory Scavenger-Mutant | -7/Garrison Scavenger-Mutant | -7/Factory Scavenger-Mutant | -7/Garrison Mutant | -7/Factory Mutant | -7/Lower Caves Mutant | -7/Lower Caves Mutant | -7/Zion Mutant | -6/Proximity Caves Mutant | -6/Factory Mutant | -6/Extension Scavenger-Mutant | -6/Cetus Commander-Mutant | -6/Archives Scavenger-Mutant | -6/Hub_04(d) Scavenger-Mutant | -5/Factory Scavenger-Mutant | -5/Upper Caves Scavenger-Mutant | -5/Upper Caves Scavenger-Mutant | -5/Zhirov Scavenger-Mutant | -4/Proximity Caves Hacker-Mutant | -4/Factory Hacker-Mutant | -4/Upper Caves Scavenger-Mutant | -4/Upper Caves Scavenger-Mutant | -4/Warlord Scavenger-Mutant | -3/Proximity Caves Trapper-Mutant | -3/Research Trapper-Mutant | -3/Testing Trapper-Mutant | -2/Research Scavenger-Mutant | -2/Quarantine Alien-Mutant | -2/Section 7 Generator-Mutant | -1/Access Generator-Mutant | -1/Command Generator-Mutant | -1/Access_0 Resources | -11 -10 -10 -9 -9 -9 -8 -8 -8 -8 -8 -7 -7 -7 -7 -7 -7 -7 -7 -6 -6 -6 -6 -6 -6 -5 -5 -5 -5 -4 -4 -4 -4 -4 -3 -3 -3 -2 -2 -2 -1 -1 -1 ----------- Run | Yrd Mat Min Mat Sto Gar Mat Gar Mat Gar Mat Fac Gar Fac Gar Fac Low Low Zio Pro Fac Ext Cet Arc Hub Fac Upp Upp Zhi Pro Fac Upp Upp War Pro Res Tes Res Qua Sec Acc Com Ac0 Matter Collected 28066 | 292 551 120 968 445 365 966 198 449 868 553 1771 1267 301 327 1897 312 423 108 290 1377 774 185 301 600 460 500 262 108 564 1656 294 292 433 244 1538 947 430 655 1196 612 1110 1057 Remotely 5297 | . . . . . . . . . . . 222 137 . . 716 . 32 . 52 570 286 . . . . . . . 228 917 . . 248 . 329 240 30 . 267 262 250 511 Salvage Created 48142 | 253 560 140 1282 738 695 2190 481 1672 898 570 1988 1019 419 1144 1474 307 75 . 419 1617 802 631 318 1715 1022 889 356 108 1239 2312 357 573 1495 557 1665 4877 65 1226 3418 1809 2483 2284 Parts 2326 | 21 42 20 95 53 41 130 5 84 71 36 105 73 22 52 77 10 2 . 15 74 47 19 19 73 49 33 11 2 51 113 20 29 49 26 62 193 3 60 144 91 113 91 Haulers Intercepted 28 | . 2 . 4 . . 6 . 3 . 4 2 . . . 3 . . . . 2 . . . . . . . . . 1 . . . . . 1 . . . . . . Recyclers Shooed 34 | . 1 1 5 . . 1 . 2 . 1 3 . . . 5 . . . . 6 4 . . . . . . . . 3 . . . . . . . . . . 2 . Parts Field Recycled . | . . . . . . . . . . . . . . . . . . . . . . . . . . . . . . . . . . . . . . . . . . . Retrieved Matter . | . . . . . . . . . . . . . . . . . . . . . . . . . . . . . . . . . . . . . . . . . . . Parts Self-Destructed 151 | . . . . . . . . . . . . . . . . 8 2 4 27 . . . . . . 16 2 . 15 . 26 49 . 2 . . . . . . . . Prevented 90 | . . . . . . . . . . . . . . . . . . . . . . . . . . 17 6 2 31 . . 13 . 21 . . . . . . . . Kills | -11 -10 -10 -9 -9 -9 -8 -8 -8 -8 -8 -7 -7 -7 -7 -7 -7 -7 -7 -6 -6 -6 -6 -6 -6 -5 -5 -5 -5 -4 -4 -4 -4 -4 -3 -3 -3 -2 -2 -2 -1 -1 -1 ------- Run | Yrd Mat Min Mat Sto Gar Mat Gar Mat Gar Mat Fac Gar Fac Gar Fac Low Low Zio Pro Fac Ext Cet Arc Hub Fac Upp Upp Zhi Pro Fac Upp Upp War Pro Res Tes Res Qua Sec Acc Com Ac0 Combat Hostiles Destroyed 794 | . 21 5 33 14 22 39 30 28 29 7 34 38 7 6 36 5 5 . 12 24 16 4 1 30 17 18 3 . 26 36 6 7 23 8 21 55 1 14 39 19 17 38 Guns 65 | . 8 . . . . . . . 15 7 6 8 . . . . . . . 2 . . . 8 4 1 . . . 2 . . . . . . . . . . 1 3 Cannons 377 | . 5 2 26 13 13 27 22 20 1 . 14 16 4 2 17 3 5 . 8 18 16 . 1 6 6 7 1 . 4 18 2 3 9 1 7 22 1 10 14 13 7 13 AOE 205 | . 8 3 7 . 7 11 8 6 12 . 14 11 1 2 17 2 . . 4 4 . . . 12 5 5 . . 17 9 4 3 7 3 4 5 . . 8 . 1 5 Classes Destroyed 33 | 2 8 . 5 . 1 4 1 . 1 . . 1 . . . 1 . . . . . . . 1 . . . . . . 1 . 3 1 . 1 . 1 1 . . . Worker 31 | . 1 2 1 1 . 2 . 3 . 1 4 . . . . . . . . 2 . . . 3 . . . . . 1 . . . . 1 4 . . . 1 4 . Builder 30 | . 2 . 1 . . 6 . . . 1 1 . 1 . 2 . . . . 3 1 . . 1 2 . . . . 5 . . . . . 2 . . 1 1 . . Tunneler 13 | 8 . 1 2 . . . . . . . . . . . 1 . . . . . . . . . . . . . . . . . . . 1 . . . . . . . Hauler 28 | . 2 . 4 . . 6 . 3 . 4 2 . . . 3 . . . . 2 . . . . . . . . . 1 . . . . . 1 . . . . . . Recycler 29 | 1 . . 2 1 . . . 2 . . 8 . . . 3 . . . . 2 1 . . . 1 . . . . 2 . . . . 1 1 . . 1 1 2 . Minesweeper 1 | . . . . . . . . . . . . . . . . . . . . . . . . . . . . . . . 1 . . . . . . . . . . . Mechanic 14 | . . . 1 . . 2 . 1 . . . . 1 . 6 . . . . . . . . 1 . . . . . . . 1 . . . . . . 1 . . . Operator 22 | . 1 . 2 . . 3 . 1 . 1 1 . . . 1 . . . . 1 1 . 7 . . . . . . 1 . . . . . 1 . . 1 . . . Watcher 34 | . 2 . 2 1 . 3 . 4 . 1 1 1 . . 1 . . . . 3 1 1 . . . . . . . . . . . . . 3 . 2 3 3 2 . Swarmer 155 | . 12 3 7 3 6 4 . 2 16 1 8 24 . 1 5 4 . . 6 3 3 . . 3 5 5 . . 11 9 . . 5 3 4 . . . . . 2 . Saboteur 6 | . . . . . . . . . . . . . . . . . . . . . . . . 2 . . . . . 1 . . . . . 2 . . . . 1 . Grunt 253 | . 6 2 18 3 10 17 2 16 6 2 7 2 4 2 16 . 2 . 3 11 2 . . 15 5 7 . . 10 13 4 4 2 3 3 33 . 3 17 . 3 . Brawler 19 | . . . 1 1 . 2 . 1 1 . . 2 . 1 1 . . . . 1 . . . 1 . . . . . . . 1 4 . . 1 . . . . 1 . Duelist 23 | . . . 1 1 1 3 . 1 . 1 . . 1 1 1 . 1 . . 1 . . . 1 . 2 . . . 1 1 . 1 1 . 1 . . 2 . . . Protector 9 | . . . . . . 2 . . . . 2 1 . . 1 . . . . . . . . . . . . . . . . . 2 . . 1 . . . . . . Researcher 4 | . . . . . . . . . . . . . . . . . . . . . . . . . . . . . . . . . . . . 4 . . . . . . Sentry 66 | . . . 6 5 4 7 2 6 3 2 2 4 1 1 1 . . . 1 1 8 . 1 1 1 2 1 . 2 1 . . . . 1 . . . 2 . . . Demolisher 5 | . . . . . . . . . . . . 1 . . . . . . . . 1 . . . . . . . . . . . 2 . 1 . . . . . . . Specialist 17 | . . . . . . 2 . 1 . . 7 . 1 . 4 . . . . . . . . . . . . . . . . . . . . . . . 2 . . . Hunter 66 | . . . . . . 1 . 1 . 1 3 . . . 4 . . . 2 4 . . . 2 5 2 2 . 2 2 1 . 2 . 10 6 1 4 . 9 2 . Programmer 64 | . . . . . . . . . 2 . 5 4 . . 3 . 1 . . 2 . . . 1 1 . . . 1 8 . 2 . . . 10 . 5 7 10 2 . Heavy 2 | . . . . . . 1 . . . . . . . . . . . . . . . . . . . . . . . . . . . . . . . . 1 . . . Q-Series 4 | . . . . . . . . . . . . . . . . . . . . . . . . . . . . . . . . . . . . . . 2 2 . . . Behemoth 10 | . . . . . 1 . . . 1 . . . . . . 1 1 . . 1 1 . . 1 . . . . . 2 . . . 1 . . . . . . . . Cetus Guard 4 | . . . . . . . . . . . . . . . . . . . . . . 4 . . . . . . . . . . . . . . . . . . . . M Guard 2 | . . . . . . . . . . . . . . . . . . . . . . . . . . . . . . . . . . . . . . . . . 2 . Enhanced Grunt 20 | . . . . . . . . . . . . . . . . . . . . . . . . . . . . . . . . . . . . . . . . . . 20 Enhanced Sentry 3 | . . . . . . . . . . . . . . . . . . . . . . . . . . . . . . . . . . . . . . . . . . 3 Enhanced Hunter 8 | . . . . . . . . . . . . . . . . . . . . . . . . . . . . . . . . . . . . . . . . . . 8 Lightning 3 | . . . . . . . . . . . . . . . . . . . . . . . . 3 . . . . . . . . . . . . . . . . . . Combat Programmer 2 | . . . . . . . . . . . . . . . . . . . . . . . . . . . . . . . . . . . . . . . . . 2 . Striker 3 | . . . . . . . . . . . . . . . . . . . . . . . . . . . . . . . . . 2 . 1 . . . . . . . Executioner 8 | . . . . . . . . . . . . . . . . . . . . . . . . . . . . . . . . . 3 . 1 . . . 4 . . . Alpha 7 2 | . . . . . . . . . . . . . . . . . . . . . . . . . . . . . . . . . . . . . . . 2 . . . Protovariant Y 1 | . . . . . . . . . . . . . . . . . . . . . . . . . . . . . . . . . . . . 1 . . . . . . Subdweller 3 | . 3 . . . . . . . . . . . . . . . . . . . . . . . . . . . . . . . . . . . . . . . . . Zionite 1 | . . . 1 . . . . . . . . . . . . . . . . . . . . . . . . . . . . . . . . . . . . . . . Packrat 3 | . . . . . . . . . . . . . . . . 3 . . . . . . . . . . . . . . . . . . . . . . . . . . Samaritan 1 | . . . . . . . . . . . . . . . . 1 . . . . . . . . . . . . . . . . . . . . . . . . . . Tinkerer 1 | . . . . . . . . . . . . . . . . . . . . . . . . . . . . . . . . . . 1 . . . . . . . . Assembled 26 | . . . . . . . 26 . . . . . . . . . . . . . . . . . . . . . . . . . . . . . . . . . . . Thug 3 | . . . 1 . . . . . . . . . . . . . . . . . 1 . . . . . . . . . . . 1 . . . . . . . . . Savage 3 | . . . . . . . . . . . . . . . . . . . . . . 2 . . . . 1 . . . . . . . . . . . . . . . Butcher 1 | . . . . . . . . . . . . . . . . . . . . . . . . . . . 1 . . . . . . . . . . . . . . . Guerrilla 1 | . . . . . . . . . . . . . . . . . . . . . . 1 . . . . . . . . . . . . . . . . . . . . Mutant 1 | . . . . . . . . . . . . . . . . . . . . . . . . . . . . . . . . . 1 . . . . . . . . . Infiltrator 1 | . . . . . . . . . . . . . . 1 . . . . . . . . . . . . . . . . . . . . . . . . . . . . Best Kill Streak 16 | 5 4 3 8 3 9 12 10 16 11 7 10 8 4 2 12 4 3 . 5 8 4 5 2 15 5 4 2 . 11 11 5 5 12 3 5 10 1 5 11 9 8 3 Combat Bots Only 12 | . 4 3 6 3 9 9 10 5 11 3 9 8 3 2 10 4 3 . 5 8 3 4 1 11 5 4 2 . 11 5 5 4 12 3 4 8 1 5 10 6 5 3 Max Kills in Single Turn 6 | 1 3 2 3 2 3 3 2 4 3 1 4 3 1 1 6 2 2 . 4 3 1 2 1 3 5 2 1 . 4 4 2 4 3 2 5 2 1 1 3 1 2 2 Gunslinging . | . . . . . . . . . . . . . . . . . . . . . . . . . . . . . . . . . . . . . . . . . . . Exploded 6 | . 2 2 2 . 3 2 2 3 3 . 3 3 1 1 6 2 . . 4 2 . . . 3 5 2 . . 4 3 2 3 3 2 4 1 . . 3 . 1 1 Melee . | . . . . . . . . . . . . . . . . . . . . . . . . . . . . . . . . . . . . . . . . . . . Uniques/NPCs Destroyed 11 | . . . . 1 . . . . . . . . . . . . . . . . . 1 . . . . . . . . . . . . . . . . . . 2 7 01-MTF (-9/Storage) A7 (-6/Cetus) MAIN.C Shell (-1/Command) MAIN.C (-1/Command) A8 (-1/Access_0) A6 (-1/Access_0) Architect (-1/Access_0) A5 (-1/Access_0) A2 (-1/Access_0) A4 (-1/Access_0) A3 (-1/Access_0) Combat | -11 -10 -10 -9 -9 -9 -8 -8 -8 -8 -8 -7 -7 -7 -7 -7 -7 -7 -7 -6 -6 -6 -6 -6 -6 -5 -5 -5 -5 -4 -4 -4 -4 -4 -3 -3 -3 -2 -2 -2 -1 -1 -1 -------- Run | Yrd Mat Min Mat Sto Gar Mat Gar Mat Gar Mat Fac Gar Fac Gar Fac Low Low Zio Pro Fac Ext Cet Arc Hub Fac Upp Upp Zhi Pro Fac Upp Upp War Pro Res Tes Res Qua Sec Acc Com Ac0 Hostile Shots Fired 4735 | . 88 9 110 107 118 145 52 94 150 21 275 259 45 45 229 25 21 . 34 189 117 16 3 251 111 74 30 . 139 227 36 38 62 30 139 254 9 108 310 113 126 526 Missed 1392 | . 20 2 33 37 36 38 18 28 46 7 96 89 17 19 76 9 5 . 7 34 42 5 . 49 23 16 6 . 33 45 12 10 17 10 48 65 5 34 64 35 32 224 Damage Taken 49942 | . 934 106 943 1164 1218 2060 595 1270 1639 220 2622 1765 313 491 2028 231 251 . 392 2541 729 151 78 4190 1364 1110 401 . 1730 2559 706 556 899 223 875 1663 54 747 3673 644 1433 5374 Core 4418 | . 180 . 95 125 126 263 14 91 126 . 187 191 39 11 141 30 . . 67 45 27 12 . 140 93 . . . 86 101 42 30 99 5 12 51 . 11 961 38 102 877 Absorbed by Shields 14077 | . . . 9 . . . . . . . . . . . 214 16 . . 16 115 176 146 . 263 290 . . . . 554 . . 385 235 912 1327 56 716 1806 571 1331 4939 Reduced by Siege Mode 2218 | . . . . . . . . . . . 61 63 16 3 226 14 20 . 25 131 25 12 . 247 54 24 30 . 129 171 49 17 61 5 56 131 . 34 213 45 83 273 Redirected to Shielding 378 | . . . . . . . . . . . . 12 . . . . . . . . . . . . . . . . 92 2 . . . . . . . . . . 18 254 Ignored by Resistances 6335 | . . . . . . . . . . . . 411 30 . 328 . . . . . . . . . . 77 . . 301 556 19 80 . 53 280 669 . 551 1516 579 851 34 Regen/Repaired (Parts) 9299 | . 182 . 152 141 257 164 . . . . 247 . 83 . . . . . . 206 . . 112 99 1540 . . . . 2043 . . 24 . 962 276 . 366 1322 309 814 . Core Remaining (%) 49 | 100 . 28 . . 13 . . . . 10 . . . . . . . . 4 . . . . 73 . . . . 82 . . . . 75 . 95 . . 25 . . 36 Volleys Fired 3168 | 22 69 14 100 49 64 126 69 85 85 45 108 101 23 39 87 21 30 2 19 86 46 22 72 107 50 46 18 7 49 150 54 48 96 33 88 204 15 75 223 107 188 226 Largest 2 | 2 2 2 2 2 2 2 2 2 2 2 2 2 2 2 2 1 1 1 1 2 1 2 2 2 2 2 2 1 2 2 2 1 1 1 1 1 1 1 1 1 1 1 Hottest 210 | 60 130 78 100 136 136 136 120 120 81 53 65 126 126 126 86 75 75 5 75 140 75 140 70 210 188 156 155 50 156 156 147 90 90 90 113 200 200 113 113 113 200 200 Shots Fired 4119 | 42 119 19 182 99 119 235 117 162 146 91 141 150 42 67 90 22 30 2 19 87 49 35 81 158 87 70 21 7 62 196 62 48 96 35 88 204 15 75 222 107 188 232 Gun 788 | 42 73 6 30 34 . . . . 118 91 69 41 3 . 2 . . . . 3 . 16 63 40 24 13 8 4 . 22 6 . . 8 . . . . . . 51 21 Cannon 3069 | . 40 10 140 65 108 223 109 158 8 . 61 103 38 61 74 20 30 . 18 78 48 12 18 96 58 50 5 . 46 162 53 37 88 21 81 192 15 75 215 107 135 211 Launcher 232 | . 6 3 10 . 11 12 8 4 20 . 11 6 1 6 13 1 . . 1 5 . 7 . 22 3 7 6 . 16 9 2 6 6 6 3 12 . . 7 . 2 . Special 30 | . . . 2 . . . . . . . . . . . 1 1 . 2 . 1 1 . . . 2 . 2 3 . 3 1 5 2 . 4 . . . . . . . Kinetic 1203 | 22 68 16 168 10 . . . 20 122 91 128 105 . . 73 20 30 . 18 77 48 . 63 . . 13 2 . 21 81 6 . . . . . . . . . 1 . Thermal 1766 | 20 37 . 4 55 108 223 109 138 . . 2 . . . . . . . . 1 . 12 18 114 59 23 3 . 18 73 47 34 62 1 22 75 9 44 138 60 105 152 Explosive 111 | . 6 3 10 . 11 12 8 4 2 . 4 6 1 . 11 1 . . 1 . . . . 7 1 4 . . 7 2 2 . . 3 1 . . . 4 . . . Electromagnetic 968 | . 8 . . 34 . . . . 22 . 7 39 41 67 5 . . . . 8 . 23 . 37 25 30 14 4 16 37 6 9 32 31 61 129 6 31 80 47 60 59 Entropic 43 | . . . . . . . . . . . . . . . . . . . . . . . . . . . . . . . . . . . . . . . . . 22 21 Robot Hit Streak 35 | 6 21 5 6 11 17 23 9 27 21 24 10 22 13 12 28 10 11 10 10 18 14 16 22 24 10 12 8 14 15 18 11 7 18 24 19 23 3 13 25 11 33 35 Robot Miss Streak 8 | 3 5 1 6 3 3 4 6 4 8 4 5 3 4 1 3 1 1 . 3 4 2 4 6 3 3 2 2 . 3 3 2 2 2 2 2 3 2 2 4 3 3 3 Penetration Max 1 | . . . . . . . . . 1 1 1 . . . 1 . 1 . . 1 . . 1 . . . . . . 1 . . . . . . . . . . . . Secondary Targets 4 | . 2 . . . . . . . 1 . . . . . . . . . . . . . . . . 1 . . . . . . . . . . . . . . . . Max Gunslinging Chain 1 | . 1 . . . . . . . 1 . . . . . . . . . . . . . . . . 1 . . . . . . . . . . . . . . . . Capacitor 1343 | . . . . . . . . . . . . . . . . . . . . . . . . . . . . . . 72 47 37 88 29 81 190 15 75 192 106 185 226 Shots Hit Robots 2488 | 25 71 11 97 71 64 155 37 98 64 62 93 83 32 52 65 10 18 2 12 55 36 22 47 95 50 48 17 7 29 122 21 15 51 21 55 137 5 40 131 56 129 177 Core Hits 1715 | 13 61 10 69 26 32 91 37 67 53 26 80 66 14 22 72 7 6 . 12 36 21 23 22 69 29 22 9 3 44 76 18 16 46 15 33 130 2 22 87 30 84 114 Critical Kills 31 | . . . . . 2 1 . 2 . 2 . . . . . . . . . . . . 1 . 1 . . . . 2 . . . . 1 3 . 1 3 2 1 9 Critical Parts Destroyed 8 | . . . . . . . . . . 1 2 . . . . . . . . . . . 1 . . . . . . . . . . . . . . . . . 2 2 Critical Strikes 107 | . . 1 2 . 2 1 . 3 . 3 7 3 1 1 8 2 3 . 3 8 1 . 2 2 1 6 . . 2 13 1 . . 2 3 4 . 1 3 3 4 11 Burn 2 | . . . . . . . . . . . . . . . . . . . . . . . . 2 . . . . . . . . . . . . . . . . . . Meltdown 29 | . . . . . 2 1 . 2 . . . . . . . . . . . . . . 1 . 1 . . . . 2 . . . . 1 3 . 1 3 2 1 9 Destroy 5 | . . . . . . . . . . 3 1 . . . . . . . . . . . 1 . . . . . . . . . . . . . . . . . . . Blast 50 | . . 1 2 . . . . 1 . . 5 2 . . 8 2 3 . 3 7 1 . . . . 5 . . 2 7 1 . . . . . . . . . . . Corrupt 15 | . . . . . . . . . . . . 1 1 . . . . . . 1 . . . . . 1 . . . 4 . . . 2 2 1 . . . 1 1 . Smash 1 | . . . . . . . . . . . 1 . . . . . . . . . . . . . . . . . . . . . . . . . . . . . . . Sever 1 | . . . . . . . . . . . . . . 1 . . . . . . . . . . . . . . . . . . . . . . . . . . . . Detonate 4 | . . . . . . . . . . . . . . . . . . . . . . . . . . . . . . . . . . . . . . . . . 2 2 Melee Attacks 109 | . . . 2 2 3 10 7 9 9 4 4 2 4 45 8 . . . . . . . . . . . . . . . . . . . . . . . . . . . Impact 34 | . . . . . . 8 7 9 6 2 2 . . . . . . . . . . . . . . . . . . . . . . . . . . . . . . . Slashing 61 | . . . 2 2 3 . . . . . . 2 . 44 8 . . . . . . . . . . . . . . . . . . . . . . . . . . . Piercing . | . . . . . . . . . . . . . . . . . . . . . . . . . . . . . . . . . . . . . . . . . . . Sneak Attacks 19 | . . . . . . 4 . . 3 2 3 . 4 1 2 . . . . . . . . . . . . . . . . . . . . . . . . . . . Combat Hostiles 5 | . . . . . . . . . 2 . . . 3 . . . . . . . . . . . . . . . . . . . . . . . . . . . . . Follow-up Attacks . | . . . . . . . . . . . . . . . . . . . . . . . . . . . . . . . . . . . . . . . . . . . Damage Inflicted 130038 | 276 1635 344 3018 1023 1929 5335 1370 3214 2182 1224 5109 3226 1022 2599 7445 911 1265 . 1015 4469 2572 1343 1268 5927 2437 2014 585 201 2849 5252 1084 1144 4147 1179 2581 8099 212 1766 7804 2892 6833 19238 Guns 12774 | 276 668 36 187 133 . . . . 1053 1192 986 654 22 . 51 . . . . 96 . 291 917 551 562 301 234 120 . 762 184 . . 245 . . . . . . 1839 1414 Cannons 75131 | . 358 127 1796 828 1222 3437 910 2552 61 . 2143 1677 648 785 3377 571 1265 . 753 3647 2471 378 351 2796 1170 1098 123 . 654 3187 438 377 1732 419 1974 5847 212 1765 5035 2892 4329 11726 Explosions 39419 | . 595 176 965 . 707 1758 460 662 1063 . 1879 895 324 387 3822 240 . . 240 662 . 674 . 2519 667 615 228 81 2195 1255 462 767 2415 515 578 2213 . . 2740 . 562 6098 Melee 1802 | . . . . . . 124 . . . . 60 . . 1427 191 . . . . . . . . . . . . . . . . . . . . . . . . . . . Ramming 912 | . 14 5 70 62 . 16 . . 5 32 41 . 28 . 4 100 . . 22 64 101 . . 61 38 . . . . 48 . . . . 29 39 . 1 29 . 103 . Kinetic 26164 | 114 490 163 1966 142 . . . 388 1023 1192 3075 1709 . . 3377 571 1265 . 753 3647 2471 . 917 . . 306 60 . 455 1935 127 . . . . . . . . . 18 . Thermal 48394 | 162 538 . 17 686 1222 3846 910 2164 280 . 211 39 32 86 319 . . . . 17 . 378 351 3419 1356 396 63 81 197 1402 311 521 2198 . 184 2015 . 882 2579 1237 3580 16715 Explosive 16603 | . 509 176 965 . 707 1349 460 662 189 . 753 856 292 . 3135 240 . . 240 . . . . 886 372 399 . . 1003 427 462 . . 418 266 . . . 1837 . . . Electromagnetic 33275 | . 84 . . 133 . . . . 685 . 969 622 670 1086 419 . . . . 741 . 965 . 1561 671 913 462 120 1194 1440 184 623 1949 761 2102 6045 212 883 3359 1655 1658 1109 Impact 184 | . . . . . . 124 . . . . 60 . . . . . . . . . . . . . . . . . . . . . . . . . . . . . . . Slashing 1618 | . . . . . . . . . . . . . . 1427 191 . . . . . . . . . . . . . . . . . . . . . . . . . . . Piercing . | . . . . . . . . . . . . . . . . . . . . . . . . . . . . . . . . . . . . . . . . . . . Entropic 2888 | . . . . . . . . . . . . . . . . . . . . . . . . . . . . . . . . . . . . . . . . . 1474 1414 Highest Corruption 69 | . . . . 3 19 . . . 2 24 1 9 9 4 7 1 8 8 6 3 4 4 4 69 2 2 10 5 23 14 2 2 2 16 . 17 . 5 6 3 11 4 Average Corruption 3 | . . . . 2 3 . . . 2 2 1 3 7 4 3 1 4 8 6 2 3 4 3 36 1 1 5 5 5 2 2 2 1 1 . 2 . 2 4 2 5 3 Corruption Purged 82 | . . . . . . . . . . . . . 5 . 7 . . . . . . . 4 . . 2 5 . . . . . . . . . . . . . 59 . Corruption Blocked 9 | . . . . . . . . . . . . . . . . . . . . . . . . . . . . . . . . . . . . . . . . . 9 . Effects 628 | . . . . 6 34 . . . 9 11 8 23 25 39 29 10 43 2 . 4 28 6 7 30 11 8 22 7 22 32 21 15 3 18 . 18 . 5 22 5 39 66 Message Errors 143 | . . . . 1 9 . . . 2 2 1 6 7 12 7 2 10 . . 1 5 2 4 3 3 1 4 . 8 5 4 2 2 4 . 3 . 3 6 1 10 13 Matter Fused 145 | . . . . 3 11 . . . 2 2 3 5 4 8 6 1 11 2 . 1 4 . 2 6 . 2 4 1 5 6 7 5 . 4 . 5 . . 5 2 13 15 Heat Flow Errors 66 | . . . . 1 3 . . . 3 . 2 3 4 3 4 . 6 . . . 5 1 . 2 2 1 2 3 . 4 2 2 . 3 . 4 . . 1 . 2 3 Energy Discharges 77 | . . . . . 3 . . . 1 3 2 2 2 4 6 2 4 . . 1 8 1 1 1 2 . 1 2 4 5 2 1 . 2 . 1 . . 2 1 4 9 Parts Rejected 9 | . . . . . . . . . . . . . . 1 . . . . . . 1 . . . . . 1 . . 1 . . 1 . . 1 . . 1 . . 2 Parts Fused 11 | . . . . . 1 . . . 1 1 . . . 1 . . . . . . . . . . . . 1 . 1 . 1 1 . . . . . . . . 1 2 Data Loss (minor) 77 | . . . . . 2 . . . . 1 . 4 5 2 4 2 7 . . . . 2 . 3 2 3 6 . 2 3 1 3 . 2 . . . 1 5 . 6 11 Data Loss (major) 36 | . . . . . 1 . . . . 1 . 1 . 2 1 1 4 . . 1 2 . . 2 2 . 2 . 1 3 2 1 . 1 . 1 . 1 1 1 1 3 Misfires 31 | . . . . 1 2 . . . . 1 . . 2 3 . 1 . . . . 3 . . 1 . . . . 1 3 2 . . 2 . 1 . . . . 1 7 Alerts 13 | . . . . . 2 . . . . . . . . 2 1 1 1 . . . . . . 2 . . 1 1 . 1 . . . . . 1 . . . . . . Misdirections 4 | . . . . . . . . . . . . . . . . . . . . . . . . 4 . . . . . . . . . . . . . . . . . . Weapon Failures 16 | . . . . . . . . . . . . 2 1 1 . . . . . . . . . 6 . 1 . . . 1 . . . . . 1 . . 1 . 1 1 Overload Shots 32 | . . . . . . . . . . . . . . . . . . . . . . . . 32 . . . . . . . . . . . . . . . . . . Effects 2 | . . . . . . . . . . . . . . . . . . . . . . . . 2 . . . . . . . . . . . . . . . . . . Energy Bleed 1 | . . . . . . . . . . . . . . . . . . . . . . . . 1 . . . . . . . . . . . . . . . . . . Heat Surge 1 | . . . . . . . . . . . . . . . . . . . . . . . . 1 . . . . . . . . . . . . . . . . . . Overflow Damage 4001 | . 4 18 44 . 3 172 41 64 7 . 188 70 17 . 519 175 112 . 53 437 200 13 5 30 139 28 . 12 31 95 24 37 21 68 13 170 . 37 248 91 55 760 Projectiles 2793 | . 4 . 40 . . 43 13 64 7 . 107 32 . . 247 131 112 . 53 397 196 . 5 26 45 . . . 11 78 24 20 18 39 11 170 . 37 166 91 54 552 Explosions 939 | . . 18 4 . 3 75 28 . . . 21 38 17 . 206 . . . . 5 . 13 . 4 94 28 . 12 20 14 . 17 3 29 . . . . 82 . . 208 Melee 269 | . . . . . . 54 . . . . 60 . . . 66 44 . . . 35 4 . . . . . . . . 3 . . . . 2 . . . . . 1 . Knockbacks 104 | . 7 1 12 2 . 1 . . . . 15 7 . . 6 2 5 . 2 15 2 . . 1 . 2 . . 2 19 1 . . . . . . . 1 . 1 . Impact 12 | . . . . 2 . 1 . . . . 1 . . . . 2 . . . 2 1 . . 1 . . . . . . . . . . . . . . 1 . 1 . Kinetic 86 | . 7 1 12 . . . . . . . 13 5 . . 5 . 5 . 2 13 1 . . . . 2 . . 2 17 1 . . . . . . . . . . . Secondary 6 | . . . . . . . . . . . 1 2 . . 1 . . . . . . . . . . . . . . 2 . . . . . . . . . . . . Self-Inflicted Damage 1725 | . 37 41 29 . . 157 . 19 83 . 69 147 . 103 26 . . . . 171 . . . 72 113 . . . 100 12 70 14 69 . . 22 . . 10 . . 361 Shots 63 | . 1 2 1 . . 6 . 2 4 . 3 3 . 3 1 . . . . 6 . . . 8 2 . . . 9 1 2 1 1 . . 2 . . 1 . . 4 Rammed 63 | . 1 2 6 8 . 3 . . 1 2 3 . 2 . 2 6 . . 1 2 7 . . 3 1 . . . . 2 . . . . 1 3 . 1 1 . 5 . Targets Rammed 70 | . 2 2 6 9 . 3 . . 1 2 3 . 2 . 2 6 . . 1 2 7 . . 3 1 . . . . 3 . . . . 2 4 . 1 1 . 7 . Kicked . | . . . . . . . . . . . . . . . . . . . . . . . . . . . . . . . . . . . . . . . . . . . Crushed 7 | . 1 . . 1 . . . . . . . . . . . . . . . . . . . . . . . . . 1 . . . . 1 1 . . . . 2 . Highest Temperature 306 | 60 291 57 212 96 252 302 48 39 247 1 300 294 306 230 262 274 280 . 26 230 114 125 . 255 240 180 199 161 19 298 261 194 238 245 268 226 . 246 242 246 222 243 Average Temperature 76 | 25 60 17 51 30 64 67 25 8 134 1 78 97 108 47 85 72 69 . 10 107 73 80 . 72 82 80 92 74 6 87 80 72 46 91 84 79 . 115 70 80 77 82 Received Heat Transfer 7661 | . 210 9 354 120 429 558 200 582 339 72 303 261 108 66 591 9 18 . 45 420 137 . . 628 122 201 . . 222 344 21 63 25 48 25 315 . 30 642 . 64 80 Effects 12 | . 3 . . . 1 . . . . . 1 2 3 . . . . . . . . . . . . . . . . 1 . . . . . . . . . 1 . . Energy Bleed 4 | . . . . . 1 . . . . . 1 . . . . . . . . . . . . . . . . . . 1 . . . . . . . . . 1 . . Interference 8 | . 3 . . . . . . . . . . 2 3 . . . . . . . . . . . . . . . . . . . . . . . . . . . . . Siege Activations 208 | . . . . . . . . . . . 4 10 4 4 11 2 3 . 4 12 10 3 2 11 6 4 2 . 4 14 2 3 4 5 9 23 1 7 14 7 5 18 Total Turns 2867 | . . . . . . . . . . . 46 124 49 35 228 37 113 . 45 146 95 39 18 197 64 91 23 . 57 219 25 41 54 64 93 344 3 52 199 86 96 184 Longest Duration 102 | . . . . . . . . . . . 26 36 20 11 101 25 89 . 21 33 30 14 16 102 22 51 18 . 20 71 17 37 24 34 21 56 3 17 47 28 50 21 Robots Corrupted 136 | . . . . 1 . 1 . . 1 . 1 3 2 2 3 2 . . . 3 . 5 . 3 1 5 3 1 5 7 . 1 6 4 10 26 . 3 15 5 9 8 Combat Hostiles 121 | . . . . 1 . . . . 1 . . 3 2 2 2 . . . . . . 4 . 3 1 5 2 1 5 5 . 1 6 4 10 26 . 3 13 4 9 8 Parts Fried 318 | . . . . 4 . 6 . . 3 . 2 4 4 6 6 2 . . . 7 . 6 . 3 8 7 6 . 7 12 . . 13 6 28 77 . 8 36 17 24 16 Impact Corruptions 16 | . . . . . . 3 . . . . 2 . . . 1 3 . . . 2 1 . . . . . . . . 2 . . . . 1 . . . . . 1 . Robots Melted 34 | . . . . . 2 2 . 2 . . . . . . . . . . . . . . 1 1 1 . . . . 2 . . 1 . 1 3 . 1 4 2 2 9 Combat Hostiles 30 | . . . . . 2 1 . 2 . . . . . . . . . . . . . . . 1 1 . . . . 2 . . 1 . . 2 . 1 4 2 2 9 Parts Melted 122 | 1 1 . . 1 5 10 4 6 . . . . . 1 . . . . . . . . 4 8 10 . . . 1 12 . 1 7 . 1 12 . 2 14 10 2 9 Heat Transferred 44264 | 375 810 . 37 1184 2109 5578 1443 3441 450 . 297 26 50 100 250 . . . . 50 . 350 550 4351 1850 600 100 50 200 1811 333 359 2285 . 124 1743 . 851 2505 925 1037 8040 Parts Sabotaged . | . . . . . . . . . . . . . . . . . . . . . . . . . . . . . . . . . . . . . . . . . . . Parts Stolen . | . . . . . . . . . . . . . . . . . . . . . . . . . . . . . . . . . . . . . . . . . . . Parts Stripped . | . . . . . . . . . . . . . . . . . . . . . . . . . . . . . . . . . . . . . . . . . . . Power Chain Reactions 48 | . 1 . . . . . . . 7 . 5 1 1 2 3 . . . . 1 . . . 7 . . . 1 2 2 . 2 6 . 1 4 . . 2 . . . Alert | -11 -10 -10 -9 -9 -9 -8 -8 -8 -8 -8 -7 -7 -7 -7 -7 -7 -7 -7 -6 -6 -6 -6 -6 -6 -5 -5 -5 -5 -4 -4 -4 -4 -4 -3 -3 -3 -2 -2 -2 -1 -1 -1 ------- Run | Yrd Mat Min Mat Sto Gar Mat Gar Mat Gar Mat Fac Gar Fac Gar Fac Low Low Zio Pro Fac Ext Cet Arc Hub Fac Upp Upp Zhi Pro Fac Upp Upp War Pro Res Tes Res Qua Sec Acc Com Ac0 Peak Influence 1961 | 45 211 222 829 473 1005 1313 1532 1162 1961 1182 1086 1954 1220 1872 1739 . . . . 648 725 575 486 1855 1272 . . . . 863 . . . . 366 1239 717 288 983 906 800 . Initial 1025 | . 29 36 . 349 69 489 640 746 629 955 490 725 1025 716 982 . . . . 116 294 399 150 . 726 . . . . 195 . . . . . 81 696 217 69 552 514 . Average 649 | 23 140 73 421 213 580 834 1027 898 1446 913 778 1282 1119 1504 1072 . . . . 354 368 473 195 1199 815 . . . . 445 . . . . 128 586 527 138 678 717 625 . Maximum Alert Level 5 | . 1 1 3 2 3 4 4 4 5 4 4 5 4 5 5 . . . . 2 3 2 2 5 4 . . . . 3 . . . . 1 4 3 1 3 3 3 . Low Security (%) 19 | 100 74 99 32 71 12 . . . . . . . . . . . . . . 28 1 . 55 13 . . . . . 12 . . . . 84 8 . 81 16 . . . Level 1 10 | . 25 . 4 10 17 . . . . . . . . . . . . . . 28 65 25 26 1 . . . . . 36 . . . . 15 12 20 18 7 . . . Level 2 16 | . . . 48 17 21 20 7 . 3 . 36 . . . . . . . . 43 25 74 18 1 7 . . . . 30 . . . . . 45 54 . 15 41 8 . Level 3 41 | . . . 14 . 48 76 58 95 18 85 63 34 30 16 70 . . . . . 7 . . 4 83 . . . . 20 . . . . . 29 25 . 60 58 91 . Level 4 8 | . . . . . . 3 33 4 32 14 . 31 69 36 16 . . . . . . . . 59 9 . . . . . . . . . . 4 . . . . . . Level 5 4 | . . . . . . . . . 45 . . 34 . 46 13 . . . . . . . . 20 . . . . . . . . . . . . . . . . . . High Security . | . . . . . . . . . . . . . . . . . . . . . . . . . . . . . . . . . . . . . . . . . . . Max Security . | . . . . . . . . . . . . . . . . . . . . . . . . . . . . . . . . . . . . . . . . . . . Squads Dispatched 140 | . 2 . 8 4 . 9 . 8 . 3 9 . 5 . 12 . . . . 7 1 . . 13 6 . . . . 9 . 1 . . 9 14 . 4 8 6 2 . Investigation 25 | . 1 . 3 . . 1 . . . 1 . . . . 1 . . . . 2 . . . 3 2 . . . . 2 . . . . 6 2 . . . 1 . . Extermination 27 | . . . . . . . . . . . 3 . 1 . 2 . . . . 2 . . . 1 1 . . . . 4 . . . . . 4 . 3 3 2 1 . Reinforcement 38 | . 1 . 3 . . 5 . 2 . 1 4 . 2 . 3 . . . . 2 . . . 3 1 . . . . 1 . . . . 3 4 . 1 2 . . . Assault 39 | . . . 2 . . 3 . 3 . 1 2 . 2 . 3 . . . . 1 1 . . 5 2 . . . . 2 . 1 . . . 4 . . 3 3 1 . Garrison 11 | . . . . 4 . . . 3 . . . . . . 3 . . . . . . . . 1 . . . . . . . . . . . . . . . . . . Intercept . | . . . . . . . . . . . . . . . . . . . . . . . . . . . . . . . . . . . . . . . . . . . Searches Triggered . | . . . . . . . . . . . . . . . . . . . . . . . . . . . . . . . . . . . . . . . . . . . Construction Impeded 8 | . . . 1 . . 1 . 1 . . . . . . . . . . . 1 . . . 2 . . . . . 1 . . . . . 1 . . . . . . Haulers Reinforced 5 | . . . . . . . . . . . . . . . 2 . . . . 1 . . . 1 1 . . . . . . . . . . . . . . . . . Active Scanning Responses . | . . . . . . . . . . . . . . . . . . . . . . . . . . . . . . . . . . . . . . . . . . . Cargo Convoy Interrupts 2 | . . . . . . . . . . . 1 . . . 1 . . . . . . . . . . . . . . . . . . . . . . . . . . . Stealth | -11 -10 -10 -9 -9 -9 -8 -8 -8 -8 -8 -7 -7 -7 -7 -7 -7 -7 -7 -6 -6 -6 -6 -6 -6 -5 -5 -5 -5 -4 -4 -4 -4 -4 -3 -3 -3 -2 -2 -2 -1 -1 -1 --------- Run | Yrd Mat Min Mat Sto Gar Mat Gar Mat Gar Mat Fac Gar Fac Gar Fac Low Low Zio Pro Fac Ext Cet Arc Hub Fac Upp Upp Zhi Pro Fac Upp Upp War Pro Res Tes Res Qua Sec Acc Com Ac0 Distress Signals 76 | . 1 . 2 1 . 6 . 2 . 2 . 2 . . . . . . . 3 2 2 . 5 . . . . . 3 . . . . 11 . 4 1 2 1 26 . Communications Jammed 168 | . . . . . . . . . . . 5 5 1 . . . . . . . . . . . . . . . . . . . . . . 44 66 12 28 7 . . Distress Signals 161 | . . . . . . . . . . . 5 5 1 . . . . . . . . . . . . . . . . . . . . . . 44 66 12 24 4 . . Times Spotted 1300 | . 32 7 52 53 26 70 24 51 36 19 53 41 13 25 49 5 5 . 15 42 34 10 28 65 19 22 2 . 26 53 10 25 64 8 37 72 18 20 62 28 25 54 Peak Tracking Total 13 | . 4 3 5 5 7 5 6 7 7 6 12 8 4 7 12 4 3 . 5 9 6 5 1 8 7 7 2 . 11 5 5 8 13 3 5 7 4 3 9 5 5 4 Tactical Retreats 60 | . 1 . 3 6 . . 1 1 4 1 2 2 1 1 . . . . 3 5 2 1 . 2 . 2 . . 1 2 1 2 1 2 . 1 1 1 7 2 1 . Traps | -11 -10 -10 -9 -9 -9 -8 -8 -8 -8 -8 -7 -7 -7 -7 -7 -7 -7 -7 -6 -6 -6 -6 -6 -6 -5 -5 -5 -5 -4 -4 -4 -4 -4 -3 -3 -3 -2 -2 -2 -1 -1 -1 ------- Run | Yrd Mat Min Mat Sto Gar Mat Gar Mat Gar Mat Fac Gar Fac Gar Fac Low Low Zio Pro Fac Ext Cet Arc Hub Fac Upp Upp Zhi Pro Fac Upp Upp War Pro Res Tes Res Qua Sec Acc Com Ac0 Traps Triggered 27 | . 1 . . . 2 . 4 . 2 1 4 . . 1 4 . . . . . 1 . . 1 . . . . . . . . . . . 4 . . . 1 1 . Indirectly 10 | . . . . . . . . . 2 . 3 . . 1 . . . . . . . . . . . . . . . . . . . . . 4 . . . . . . Trap Hack Attempts . | . . . . . . . . . . . . . . . . . . . . . . . . . . . . . . . . . . . . . . . . . . . Triggered . | . . . . . . . . . . . . . . . . . . . . . . . . . . . . . . . . . . . . . . . . . . . Disarmed . | . . . . . . . . . . . . . . . . . . . . . . . . . . . . . . . . . . . . . . . . . . . Reprogrammed . | . . . . . . . . . . . . . . . . . . . . . . . . . . . . . . . . . . . . . . . . . . . Reused 8 | . . . . . . . . . . . . . . . . . . . . . . . . . . . . . . . . . . . . . . . . . 8 . Traps Extracted 5 | . . . . . . . . . . . . . . . . . . . . . . . . . . . . . . . 1 . 2 . . . . . . . 2 . Installed 10 | . . . . . . . . . . . . . . . . . . . . . . . . . . . . . . . . . . . . . . . . . 10 . Triggered 23 | . . . . . . . . . . . . . . . . . . . . . . . . . . . . . . . . . 14 . . . . . 1 . 8 . Most Traps Carried 8 | . . . . . . . . . . . . . . . . . . . . . . . . . . . . . . . 6 6 8 8 8 8 8 8 8 8 8 . Machines | -11 -10 -10 -9 -9 -9 -8 -8 -8 -8 -8 -7 -7 -7 -7 -7 -7 -7 -7 -6 -6 -6 -6 -6 -6 -5 -5 -5 -5 -4 -4 -4 -4 -4 -3 -3 -3 -2 -2 -2 -1 -1 -1 ---------- Run | Yrd Mat Min Mat Sto Gar Mat Gar Mat Gar Mat Fac Gar Fac Gar Fac Low Low Zio Pro Fac Ext Cet Arc Hub Fac Upp Upp Zhi Pro Fac Upp Upp War Pro Res Tes Res Qua Sec Acc Com Ac0 Machines Disabled 172 | . 2 1 1 3 8 8 9 . 8 3 5 3 3 7 14 . . . 1 . 4 . 4 14 16 . . 2 3 5 . 1 1 . . 8 3 4 10 2 3 16 Max in Single Turn 6 | . 1 1 1 1 2 5 1 . 2 1 1 1 1 1 6 . . . 1 . 1 . 1 2 6 . . 2 2 1 . . 1 . . 1 3 1 1 1 1 3 Garrison Access 7 | . . . . . . . . . . . . . . . . . . . . . . . . 1 . . . . . 1 . . . . 3 . 2 . . . . . Garrison Relay 24 | . . . . . 4 . 7 . 7 . . 3 . 3 . . . . . . . . . . . . . . . . . . . . . . . . . . . . Phase Generator 2 | . . . . . 1 . . . . . . . . 1 . . . . . . . . . . . . . . . . . . . . . . . . . . . . Network Hub 1 | . . . . . . . . . . . . . . . . . . . . . . . . 1 . . . . . . . . . . . . . . . . . . Machines Repaired . | . . . . . . . . . . . . . . . . . . . . . . . . . . . . . . . . . . . . . . . . . . . Machines Dismantled 4 | . . . . . . . . . . . . . . 1 . . . . . . 1 . . 1 . . . . . . . . 1 . . . . . . . . . Machines Sabotaged 1 | . . . . . . . . . . . . . . . . . . . . . . . . 1 . . . . . . . . . . . . . . . . . . Overloaded Fab Kills . | . . . . . . . . . . . . . . . . . . . . . . . . . . . . . . . . . . . . . . . . . . . Hacking | -11 -10 -10 -9 -9 -9 -8 -8 -8 -8 -8 -7 -7 -7 -7 -7 -7 -7 -7 -6 -6 -6 -6 -6 -6 -5 -5 -5 -5 -4 -4 -4 -4 -4 -3 -3 -3 -2 -2 -2 -1 -1 -1 --------- Run | Yrd Mat Min Mat Sto Gar Mat Gar Mat Gar Mat Fac Gar Fac Gar Fac Low Low Zio Pro Fac Ext Cet Arc Hub Fac Upp Upp Zhi Pro Fac Upp Upp War Pro Res Tes Res Qua Sec Acc Com Ac0 Machines Accessed 188 | . 8 . 12 13 4 13 3 10 3 4 10 2 2 2 10 1 . 1 1 7 11 . 1 8 2 . . 4 1 11 1 . 4 . 8 11 1 6 4 4 3 2 Terminals 129 | . 7 . 9 12 4 10 3 8 3 2 5 2 . 2 6 . . . 1 4 11 . . 7 . . . . 1 5 . . . . 3 9 . 5 3 4 3 . Fabricators 8 | . . . . . . . . . . . 1 . 1 . 1 . . . . . . . . . 1 . . . . 2 . . . . 1 1 . . . . . . Repair Stations 13 | . 1 . 1 . . 1 . . . . 2 . . . 2 . . . . 1 . . . . 1 . . . . 2 . . . . 1 . . . 1 . . . Recycling Units 2 | . . . 1 . . . . . . . . . . . . . . . . . . . . . . . . . . 1 . . . . . . . . . . . . Scanalyzers 7 | . . . 1 . . 1 . 1 . 1 1 . . . . . . . . 1 . . . . . . . . . . . . . . . 1 . . . . . . Garrison Access 15 | . . . . 1 . 1 . 1 . 1 1 . 1 . 1 . . . . 1 . . . 1 . . . . . 1 . . . . 3 . 1 1 . . . . Total Hacks 599 | . 28 . 37 34 7 38 8 34 9 14 24 7 5 4 35 1 . 3 4 20 24 . 6 20 13 . . 16 5 74 1 . 5 . 29 36 1 16 8 10 4 19 Successful 313 | . 13 . 18 19 1 21 2 19 2 9 13 2 3 2 13 1 . 3 4 6 15 . 6 7 7 . . 16 5 41 1 . 5 . 15 9 . 6 4 4 2 19 Failed 285 | . 15 . 19 15 6 17 6 15 7 5 11 5 2 2 22 . . . . 14 9 . . 13 6 . . . . 32 . . . . 14 27 1 10 4 6 2 . Catastrophic 55 | . 2 . 3 2 1 3 3 2 1 1 3 . 2 . 1 . . . . . 1 . . 2 . . . . . 5 . . . . 5 8 1 4 2 3 . . Database Lockouts 1 | . . . . . . . . . . . . . . . . . . . . . . . . . . . . . . 1 . . . . . . . . . . . . Manual 266 | . 17 . 30 21 . 22 2 23 1 5 5 2 2 1 19 . . . . 11 10 1 . 11 1 . . . . 47 . . . . 11 13 . 8 . 2 1 . Terminals 398 | . 19 . 30 33 7 30 8 29 9 7 10 7 . 4 21 . . . 4 16 24 . . 16 . . . . 5 41 . . . . 13 29 . 15 7 10 4 . Fabricators 41 | . . . . . . . . . . . 4 . 3 . 3 . . . . . . . . . 7 . . . . 14 . . . . 4 6 . . . . . . Repair Stations 55 | . 9 . 5 . . 2 . . . . 6 . . . 10 . . . . 1 . . . . 6 . . . . 10 . . . . 5 . . . 1 . . . Recycling Units 8 | . . . 1 . . . . . . . . . . . . . . . . . . . . . . . . . . 7 . . . . . . . . . . . . Scanalyzers 19 | . . . 1 . . 5 . 4 . 5 2 . . . . . . . . 1 . . . . . . . . . . . . . . . 1 . . . . . . Garrison Access 27 | . . . . 1 . 1 . 1 . 2 2 . 2 . 1 . . . . 2 . . . 4 . . . . . 2 . . . . 7 . 1 1 . . . . Terminal Hacks 150 | . . . 5 10 1 9 1 9 2 3 2 1 . 2 3 1 . 3 4 2 9 . 6 4 . . . 16 5 9 1 . 5 . 2 3 . 4 4 3 2 19 Record 41 | . . . . . . . . . . . . . . . . . . . 4 . . . 6 . . . . 5 5 . . . 4 . . . . . . . . 17 Part Schematic 9 | . . . . . . . . . . . . . . . . . . 3 . 1 . . . . . . . 3 . 2 . . . . . . . . . . . . Robot Schematic 1 | . . . 1 . . . . . . . . . . . . . . . . . . . . . . . . . . . . . . . . . . . . . . . Robot Analysis 7 | . . . 3 . . . . . . . . . . . . . . . . . . . . . . . . 4 . . . . . . . . . . . . . . Prototype ID Bank 7 | . . . . 1 . . . . . . . . . . . . . . . . 1 . . . . . . 4 . . . . . . . . . 1 . . . . Open Door 17 | . . . . 3 1 . . . 1 . . . . 1 . 1 . . . . 5 . . . . . . . . . 1 . 1 . . . . . 2 . 1 . Branch Access Points 3 | . . . 1 . . . . . . . . . . . 1 . . . . . . . . . . . . . . 1 . . . . . . . . . . . . Emergency Access Points 4 | . . . . . . . . . 1 . . 1 . 1 . . . . . . . . . . . . . . . . . . . . . . . . . . 1 . Machine Index 1 | . . . . . . . . . . . . . . . . . . . . . . . . . . . . . . . . . . . 1 . . . . . . . Terminal Index 4 | . . . . . . 1 . 1 . . . . . . . . . . . . . . . . . . . . . 1 . . . . . . . . . 1 . . Fabricator Index 2 | . . . . . . . . . . . . . . . . . . . . . . . . . . . . . . 1 . . . . 1 . . . . . . . Repair Station Index 1 | . . . . . . . . . . . . . . . . . . . . . . . . . . . . . . 1 . . . . . . . . . . . . Alert Level 12 | . . . . 2 . 1 . 2 . 1 . . . . . . . . . . 1 . . . . . . . . 1 . . . . . 1 . 1 1 1 . . Unreport Threat 18 | . . . . 2 . 4 . 2 . 1 . . . . 1 . . . . . 1 . . 2 . . . . . . . . . . . 1 . 2 1 1 . . Locate Traps 3 | . . . . . . . . . . . 2 . . . . . . . . . 1 . . . . . . . . . . . . . . . . . . . . . Patrol Status 1 | . . . . . . . . . . . . . . . 1 . . . . . . . . . . . . . . . . . . . . . . . . . . . Recall Reinforcements 1 | . . . . . . . . . . . . . . . . . . . . . . . . . . . . . . . . . . . . 1 . . . . . . Hauler Manifests 3 | . . . . 1 . . . 1 . . . . . . . . . . . . . . . . . . . . . 1 . . . . . . . . . . . . Zone Layout 12 | . . . . 1 . 3 . 3 . 1 . . . . . . . . . 1 . . . 2 . . . . . 1 . . . . . . . . . . . . Garrison Registry 1 | . . . . . . . 1 . . . . . . . . . . . . . . . . . . . . . . . . . . . . . . . . . . . Gate Test 138-A 1 | . . . . . . . . . . . . . . . . . . . . . . . . . . . . . . . . . . . . . . . . . . 1 Gate Test 138-END 1 | . . . . . . . . . . . . . . . . . . . . . . . . . . . . . . . . . . . . . . . . . . 1 Fabricator Hacks 15 | . . . . . . . . . . . 2 . 2 . . . . . . . . . . . 2 . . . . 6 . . . . 1 2 . . . . . . Network Status 1 | . . . . . . . . . . . . . . . . . . . . . . . . . . . . . . 1 . . . . . . . . . . . . Load Schematic 7 | . . . . . . . . . . . 1 . 1 . . . . . . . . . . . 1 . . . . 2 . . . . 1 1 . . . . . . Build 7 | . . . . . . . . . . . 1 . 1 . . . . . . . . . . . 1 . . . . 3 . . . . . 1 . . . . . . Repair Station Hacks 30 | . 6 . 4 . . 2 . . . . 3 . . . 2 . . . . . . . . . 4 . . . . 5 . . . . 4 . . . . . . . Scan Component 17 | . 3 . 2 . . 1 . . . . 2 . . . 2 . . . . . . . . . 2 . . . . 3 . . . . 2 . . . . . . . Repair 13 | . 3 . 2 . . 1 . . . . 1 . . . . . . . . . . . . . 2 . . . . 2 . . . . 2 . . . . . . . Recycling Unit Hacks 1 | . . . . . . . . . . . . . . . . . . . . . . . . . . . . . . 1 . . . . . . . . . . . . Retrieve Components 1 | . . . . . . . . . . . . . . . . . . . . . . . . . . . . . . 1 . . . . . . . . . . . . Scanalyzer 11 | . . . . . . 3 . 2 . 5 1 . . . . . . . . . . . . . . . . . . . . . . . . . . . . . . . Insert Component 7 | . . . . . . 2 . 1 . 3 1 . . . . . . . . . . . . . . . . . . . . . . . . . . . . . . . Analyze 4 | . . . . . . 1 . 1 . 2 . . . . . . . . . . . . . . . . . . . . . . . . . . . . . . . . Garrison Access Hacks 10 | . . . . 1 . 1 . 1 . . 1 . 1 . . . . . . . . . . 1 . . . . . 1 . . . . 3 . . . . . . . Unlock Access 6 | . . . . 1 . 1 . 1 . . 1 . 1 . . . . . . . . . . 1 . . . . . . . . . . . . . . . . . . Seal Access 4 | . . . . . . . . . . . . . . . . . . . . . . . . . . . . . . 1 . . . . 3 . . . . . . . Unauthorized Hacks 96 | . 7 . 9 8 . 6 1 7 . 1 4 1 . . 8 . . . . 4 6 . . 2 1 . . . . 19 . . . . 5 4 . 2 . 1 . . Terminals 74 | . 7 . 7 8 . 6 1 7 . 1 1 1 . . 6 . . . . 3 6 . . 2 . . . . . 9 . . . . 4 2 . 2 . 1 . . Assimilate 1 | . . . . . . . . . . . . . . . . . . . . . . . . . . . . . . . . . . . . 1 . . . . . . Botnet 18 | . . . 1 2 . . 1 2 . . 1 1 . . . . . . . 1 1 . . 1 . . . . . 2 . . . . 2 1 . 1 . 1 . . Operators 10 | . 1 . 1 1 . . . . . 1 . . . . 2 . . . . . 1 . . . . . . . . 1 . . . . 1 . . 1 . . . . Skim 44 | . 6 . 5 5 . 6 . 5 . . . . . . 4 . . . . 2 4 . . . . . . . . 6 . . . . 1 . . . . . . . Sabotage 1 | . . . . . . . . . . . . . . . . . . . . . . . . 1 . . . . . . . . . . . . . . . . . . Fabricators 11 | . . . . . . . . . . . 2 . . . 1 . . . . . . . . . . . . . . 7 . . . . . 1 . . . . . . Report 2 | . . . . . . . . . . . . . . . . . . . . . . . . . . . . . . 2 . . . . . . . . . . . . Prioritize 4 | . . . . . . . . . . . 1 . . . . . . . . . . . . . . . . . . 2 . . . . . 1 . . . . . . Liberate 2 | . . . . . . . . . . . . . . . . . . . . . . . . . . . . . . 2 . . . . . . . . . . . . Haulers 3 | . . . . . . . . . . . 1 . . . 1 . . . . . . . . . . . . . . 1 . . . . . . . . . . . . Repair Stations 4 | . . . . . . . . . . . . . . . 1 . . . . 1 . . . . 1 . . . . . . . . . 1 . . . . . . . Mechanics 1 | . . . . . . . . . . . . . . . 1 . . . . . . . . . . . . . . . . . . . . . . . . . . . Patch 3 | . . . . . . . . . . . . . . . . . . . . 1 . . . . 1 . . . . . . . . . 1 . . . . . . . Recycling Units 4 | . . . 1 . . . . . . . . . . . . . . . . . . . . . . . . . . 3 . . . . . . . . . . . . Reject 1 | . . . . . . . . . . . . . . . . . . . . . . . . . . . . . . 1 . . . . . . . . . . . . Recyclers 1 | . . . . . . . . . . . . . . . . . . . . . . . . . . . . . . 1 . . . . . . . . . . . . Mask 1 | . . . . . . . . . . . . . . . . . . . . . . . . . . . . . . 1 . . . . . . . . . . . . Tunnel 1 | . . . 1 . . . . . . . . . . . . . . . . . . . . . . . . . . . . . . . . . . . . . . . Scanalyzers 2 | . . . 1 . . . . . . . . . . . . . . . . . . . . . . . . . . . . . . . . 1 . . . . . . Researchers 1 | . . . . . . . . . . . . . . . . . . . . . . . . . . . . . . . . . . . . 1 . . . . . . Extract 1 | . . . 1 . . . . . . . . . . . . . . . . . . . . . . . . . . . . . . . . . . . . . . . Garrison Access 1 | . . . . . . . . . . . 1 . . . . . . . . . . . . . . . . . . . . . . . . . . . . . . . Reprogram 1 | . . . . . . . . . . . 1 . . . . . . . . . . . . . . . . . . . . . . . . . . . . . . . Data Cores Recovered 10 | . . . 1 . . 1 . 1 . 1 . . . . . . . . . . 1 . . 1 . . . . . 1 . . . . . . . 1 . 2 . . Used 3 | . . . 1 . . . . . . 1 . . . . . . . . . . 1 . . . . . . . . . . . . . . . . . . . . . Hacking Detections 157 | . 8 . 10 13 4 11 3 9 3 4 10 2 2 2 10 . . . 1 6 7 . . 7 1 . . . . 11 . . . . 8 10 1 6 2 4 2 . Full Trace Events 16 | . 1 . 1 . 1 1 1 . . . . 1 . . 1 . . . . 1 . . . 1 1 . . . . 2 . . . . 1 2 . . . 1 . . Feedback Events 1 | . . . . . . . . . . . . . . . 1 . . . . . . . . . . . . . . . . . . . . . . . . . . . Corruption 1 | . . . . . . . . . . . . . . . 1 . . . . . . . . . . . . . . . . . . . . . . . . . . . Feedback Blocked . | . . . . . . . . . . . . . . . . . . . . . . . . . . . . . . . . . . . . . . . . . . . Robot Schematics Acquired 4 | . . . 1 . . . . . . . . . . . . . . . . . . . . . . . . . . . . . . . . 3 . . . . . . Robots Built 2 | . . . . . . . . . . . . . 1 . . . . . . . . . . . 1 . . . . . . . . . . . . . . . . . Authchips 1 | . . . . . . . . . . . . . 1 . . . . . . . . . . . . . . . . . . . . . . . . . . . . . Time 80 | . . . . . . . . . . . . . 40 . . . . . . . . . . . 40 . . . . . . . . . . . . . . . . . Total Robot Build Rating 2 | . . . . . . . . . . . . . 1 . . . . . . . . . . . 1 . . . . . . . . . . . . . . . . . Part Schematics Acquired 30 | . . . 6 . . 1 . 1 . 2 . . . . . . . 3 . 1 . . . . . . . 3 . 2 . . . . . 11 . . . . . . Parts Built 7 | . . . . . . . . . . . 2 . . . . . . . . . . . . . . . . . . 3 . . . . . 2 . . . . . . Authchips 1 | . . . . . . . . . . . 1 . . . . . . . . . . . . . . . . . . . . . . . . . . . . . . . Time 343 | . . . . . . . . . . . 62 . . . . . . . . . . . . . . . . . . 252 . . . . . 29 . . . . . . Total Part Build Rating 33 | . . . . . . . . . . . 4 . . . . . . . . . . . . . . . . . . 15 . . . . . 14 . . . . . . Parts Repaired 13 | . 3 . 2 . . 1 . . . . 1 . . . . . . . . . . . . . 2 . . . . 2 . . . . 2 . . . . . . . Time 788 | . 90 . 52 . . 108 . . . . 25 . . . . . . . . . . . . . 216 . . . . 81 . . . . 216 . . . . . . . Parts Recycled . | . . . . . . . . . . . . . . . . . . . . . . . . . . . . . . . . . . . . . . . . . . . Recycled Matter . | . . . . . . . . . . . . . . . . . . . . . . . . . . . . . . . . . . . . . . . . . . . Retrieved Matter . | . . . . . . . . . . . . . . . . . . . . . . . . . . . . . . . . . . . . . . . . . . . Retrieved Components 3 | . . . . . . . . . . . . . . . . . . . . . . . . . . . . . . 3 . . . . . . . . . . . . Parts Scanalyzed 5 | . . . . . . 1 . 1 . 2 1 . . . . . . . . . . . . . . . . . . . . . . . . . . . . . . . Part Schematics Acquired 4 | . . . . . . 1 . 1 . 2 . . . . . . . . . . . . . . . . . . . . . . . . . . . . . . . . Parts Damaged 1 | . . . . . . . . 1 . . . . . . . . . . . . . . . . . . . . . . . . . . . . . . . . . . Bothacking | -11 -10 -10 -9 -9 -9 -8 -8 -8 -8 -8 -7 -7 -7 -7 -7 -7 -7 -7 -6 -6 -6 -6 -6 -6 -5 -5 -5 -5 -4 -4 -4 -4 -4 -3 -3 -3 -2 -2 -2 -1 -1 -1 ------------ Run | Yrd Mat Min Mat Sto Gar Mat Gar Mat Gar Mat Fac Gar Fac Gar Fac Low Low Zio Pro Fac Ext Cet Arc Hub Fac Upp Upp Zhi Pro Fac Upp Upp War Pro Res Tes Res Qua Sec Acc Com Ac0 Used RIF Installer . | . . . . . . . . . . . . . . . . . . . . . . . . . . . . . . . . . . . . . . . . . . . Robots Hacked 20 | . . . . . . 1 . . 1 1 1 . 1 1 . 1 . 2 . . 1 . . . 1 . 1 3 . . . 1 2 . 2 . . . . . . . Non-combat 6 | . . . . . . 1 . . . 1 1 . 1 . . . . . . . . . . . 1 . 1 . . . . . . . . . . . . . . . Combat 14 | . . . . . . . . . 1 . . . . 1 . 1 . 2 . . 1 . . . . . . 3 . . . 1 2 . 2 . . . . . . . Robot Hacks Applied 23 | . . . . . . 2 . . 1 2 2 . 1 1 . 1 . 2 . . 1 . . . 1 . 1 3 . . . 1 2 . 2 . . . . . . . parse_system 19 | . . . . . . 1 . . 1 1 1 . 1 1 . 1 . 2 . . 1 . . . . . 1 3 . . . 1 2 . 2 . . . . . . . no_distress 1 | . . . . . . . . . . 1 . . . . . . . . . . . . . . . . . . . . . . . . . . . . . . . . find_chute 2 | . . . . . . . . . . . 1 . . . . . . . . . . . . . 1 . . . . . . . . . . . . . . . . . check_alert 1 | . . . . . . 1 . . . . . . . . . . . . . . . . . . . . . . . . . . . . . . . . . . . . Relay Couplers Released 102 | . . . . . 16 . 30 . 28 . . 13 . 11 . . . . . . . . . 1 . . . . . . . . . . . . 3 . . . . . Machine Destruction 102 | . . . . . 16 . 30 . 28 . . 13 . 11 . . . . . . . . . 1 . . . . . . . . . . . . 3 . . . . . Fabnet Peak Effective % . | . . . . . . . . . . . . . . . . . . . . . . . . . . . . . . . . . . . . . . . . . . . Robots Rewired 24 | . . . . . 3 . . . 1 . . . 1 . . . . . . 1 11 . . . . 2 . . . 2 1 2 . . . . . . . . . . Allies Hacked 2 | . . . . . . . . . . . . . . . 2 . . . . . . . . . . . . . . . . . . . . . . . . . . . Hacks Repelled . | . . . . . . . . . . . . . . . . . . . . . . . . . . . . . . . . . . . . . . . . . . . Allies | -11 -10 -10 -9 -9 -9 -8 -8 -8 -8 -8 -7 -7 -7 -7 -7 -7 -7 -7 -6 -6 -6 -6 -6 -6 -5 -5 -5 -5 -4 -4 -4 -4 -4 -3 -3 -3 -2 -2 -2 -1 -1 -1 -------- Run | Yrd Mat Min Mat Sto Gar Mat Gar Mat Gar Mat Fac Gar Fac Gar Fac Low Low Zio Pro Fac Ext Cet Arc Hub Fac Upp Upp Zhi Pro Fac Upp Upp War Pro Res Tes Res Qua Sec Acc Com Ac0 Total Allies 61 | . . 2 . 10 5 . . . 3 . . . 2 4 . . . . . 1 20 5 . . 1 2 . . . 2 1 2 . . . 1 . . . . . . Largest Group 16 | . . 2 2 10 3 2 . . 2 1 . . 2 4 3 . . . . 1 16 8 5 5 1 2 . . . 1 1 2 . . . 1 . . . . . . Highest-Rated Group 597 | . . 46 46 88 72 62 . . 85 85 . . 46 241 146 . . . . 41 552 597 480 480 14 58 . . . 49 116 97 . . . 10 . . . . . . Highest-Rated Ally 159 | . . 31 31 16 31 31 . . 85 85 . . 32 95 95 . . . . 41 159 133 96 96 14 29 . . . 49 116 49 . . . 10 . . . . . . Warlord Squad Rendezvous 1 | . . . . . . . . . . . . . . . . . . . . . . . . . . . . . . 1 . . . . . . . . . . . . Geek 1 | . . . . . . . . . . . . . . . . . . . . . . . . . . . . . . 1 . . . . . . . . . . . . Total Orders 89 | . . . . . . . . . . . . . 4 . . . . . . . . 2 2 . 6 . . . . 1 19 38 3 . . 4 . . 2 . 8 . STAY 9 | . . . . . . . . . . . . . 1 . . . . . . . . 1 1 . 2 . . . . . . 2 . . . 2 . . . . . . ROAM 4 | . . . . . . . . . . . . . . . . . . . . . . . . . 1 . . . . . . 1 . . . . . . . . 2 . FOLLOW 6 | . . . . . . . . . . . . . 1 . . . . . . . . 1 1 . . . . . . . . 1 . . . 2 . . . . . . AID 5 | . . . . . . . . . . . . . 2 . . . . . . . . . . . 3 . . . . . . . . . . . . . . . . . EXPLORE 25 | . . . . . . . . . . . . . . . . . . . . . . . . . . . . . . . 5 13 2 . . . . . 2 . 3 . RETURN 40 | . . . . . . . . . . . . . . . . . . . . . . . . . . . . . . 1 14 21 1 . . . . . . . 3 . Ally Attacks 609 | . . 4 7 8 13 53 . . 15 22 . . 9 36 16 . . . . 1 83 20 19 92 . 19 . . . 1 83 108 . . . . . . . . . . Total Damage 15419 | . . 64 125 57 377 762 . . 328 784 . . 267 1113 597 . . . . 44 1904 352 745 3895 . 209 . . . 38 1600 2158 . . . . . . . . . . Kills 131 | . . 3 3 . 2 12 . . 5 14 . . 2 15 3 . . . . . 15 5 4 30 . 1 . . . . 3 14 . . . . . . . . . . Allies Corrupted 6 | . . . . 1 . . . . . . . . . . 1 . . . . . 1 1 . . . . . . . . . . . . . . . . 2 . . . Allies Melted 5 | . . . . . 1 . . . . . . . . . . . . . . . . . . . . 1 . . . . . . 1 . . . 2 . . . . . Intel | -11 -10 -10 -9 -9 -9 -8 -8 -8 -8 -8 -7 -7 -7 -7 -7 -7 -7 -7 -6 -6 -6 -6 -6 -6 -5 -5 -5 -5 -4 -4 -4 -4 -4 -3 -3 -3 -2 -2 -2 -1 -1 -1 ------- Run | Yrd Mat Min Mat Sto Gar Mat Gar Mat Gar Mat Fac Gar Fac Gar Fac Low Low Zio Pro Fac Ext Cet Arc Hub Fac Upp Upp Zhi Pro Fac Upp Upp War Pro Res Tes Res Qua Sec Acc Com Ac0 Robot Analysis Total 7 | . . . 3 . . . . . . . . . . . . . . . . . . . . . . . . 4 . . . . . . . . . . . . . . Derelict Logs Recovered 16 | . . 2 . . . . . . . . . . . . . 1 3 2 1 . . . . . . 2 . . 2 . 1 2 . . . . . . . . . . Drone Launches 59 | . . . . . . . . . . . . . . . . . . . . . . . . . . . . . . 2 20 27 2 . . . . . 4 . 4 . Drone Recoveries 55 | . . . . . . . . . . . . . . . . . . . . . . . . . . . . . . 2 20 27 2 . . . . . . . 4 . Decoded 0b10 Intel 20 | . . . . . . . . . . . . . . . . . . . . 20 . . . . . . . . . . . . . . . . . . . . . . Items 20 | . . . . . . . . . . . . . . . . . . . . 20 . . . . . . . . . . . . . . . . . . . . . . Exploration | -11 -10 -10 -9 -9 -9 -8 -8 -8 -8 -8 -7 -7 -7 -7 -7 -7 -7 -7 -6 -6 -6 -6 -6 -6 -5 -5 -5 -5 -4 -4 -4 -4 -4 -3 -3 -3 -2 -2 -2 -1 -1 -1 ------------- Run | Yrd Mat Min Mat Sto Gar Mat Gar Mat Gar Mat Fac Gar Fac Gar Fac Low Low Zio Pro Fac Ext Cet Arc Hub Fac Upp Upp Zhi Pro Fac Upp Upp War Pro Res Tes Res Qua Sec Acc Com Ac0 Turns Passed 68431 | 276 1659 875 1708 1400 1431 2332 1025 1383 1257 835 1633 1274 800 1496 1957 1907 1961 2199 1155 893 1539 490 1745 1382 1029 1555 887 294 1104 2342 1402 1327 1509 2096 2183 1913 1414 1512 1375 831 7526 3520 Spaces Moved 32402 | 117 797 543 748 629 535 813 330 435 595 424 683 489 398 706 903 1101 1118 1368 498 337 678 230 348 501 454 837 506 160 578 947 462 574 642 813 1083 702 836 828 874 419 4162 2201 Core 200 | 4 . . . . . . . . . . . . . . . . . . . . . . 196 . . . . . . . . . . . . . . . . . . . Treads 30449 | 113 406 . 555 629 535 813 330 435 595 424 669 489 398 706 903 1101 1118 1368 498 337 678 230 152 501 454 837 506 160 578 947 462 574 642 813 1083 702 836 828 469 406 4116 2053 Legs . | . . . . . . . . . . . . . . . . . . . . . . . . . . . . . . . . . . . . . . . . . . . Wheels 1141 | . 391 543 193 . . . . . . . 14 . . . . . . . . . . . . . . . . . . . . . . . . . . . . . . . Hover . | . . . . . . . . . . . . . . . . . . . . . . . . . . . . . . . . . . . . . . . . . . . Flight . | . . . . . . . . . . . . . . . . . . . . . . . . . . . . . . . . . . . . . . . . . . . Fastest Speed 50 | 50 120 140 140 160 160 145 235 232 156 160 160 160 160 160 160 160 160 160 160 160 160 160 160 160 160 160 160 160 160 155 160 160 160 160 152 160 151 151 146 141 138 138 Average Speed 166 | 156 161 151 157 175 215 219 236 235 159 160 175 179 160 160 160 160 160 160 160 160 177 165 340 175 162 160 160 160 160 188 160 160 179 239 159 162 153 151 148 144 140 143 Slowest Speed 560 | 160 320 155 160 240 240 243 241 236 240 160 560 240 160 240 160 160 160 160 160 160 240 240 450 240 240 240 160 160 160 255 240 160 240 240 240 166 160 151 151 146 141 146 Overloaded Moves . | . . . . . . . . . . . . . . . . . . . . . . . . . . . . . . . . . . . . . . . . . . . Propulsion Burnouts . | . . . . . . . . . . . . . . . . . . . . . . . . . . . . . . . . . . . . . . . . . . . Robots Hopped . | . . . . . . . . . . . . . . . . . . . . . . . . . . . . . . . . . . . . . . . . . . . Cave-ins Triggered . | . . . . . . . . . . . . . . . . . . . . . . . . . . . . . . . . . . . . . . . . . . . Teleports 4 | . . . . . . . . . . . . . . . . . . . . . . . . . . . . . . . . . . . . . . 1 . . 1 2 Microwarps 56 | . . . . . . . . . . . . . . . . . . . . . . . . . . . . . . . . . . . . . . . 38 1 2 15 Exploration Rate (%) 66 | 5 94 99 79 94 77 92 69 54 74 37 28 73 12 73 23 98 99 85 64 14 87 56 79 40 13 97 67 60 85 23 97 98 96 92 44 87 43 81 59 11 92 94 Regions Visited 42 Branch Regions 23 Pre-discovered Areas 17 | . . . 4 3 . . . 3 . . . . . . . 1 . . 1 . . . . . . . . 3 . . 1 1 . . . . . . . . . . Known Exits Taken 22 | . . 1 1 1 . 1 . 1 . 1 1 . 1 . 1 . . . 1 1 . . . 1 1 1 1 . . 1 1 1 . 1 1 1 . . 1 . . . Unknown Exits Taken 15 | 1 1 . . . . . . . . . . . . . . 1 1 1 . . 1 1 1 . . . . 1 1 . . . 1 . . . 1 1 . 1 1 . Scrap Searched 27 | . . 1 . . . . . . . . . . . . . 5 4 3 1 . . . . . . 2 1 . 1 . 4 2 . 3 . . . . . . . . Spaces Dug 840 | . 31 6 12 2 22 9 29 27 3 2 9 37 . 27 14 18 9 . 14 11 4 . . 24 19 33 . . 23 26 38 19 28 12 15 32 6 10 34 16 41 178 Terrain Destroyed 2532 | . 47 18 57 2 97 58 53 63 22 3 44 55 17 36 161 28 16 . 17 36 14 . 6 80 117 68 2 . 132 121 60 42 47 27 37 58 17 18 94 28 53 681 Melee 58 | . . . 2 2 . 3 4 6 3 2 1 2 . 27 6 . . . . . . . . . . . . . . . . . . . . . . . . . . . Projectile 680 | . . 1 5 . . 15 6 19 . 1 20 17 . . 27 16 16 . 5 36 14 . 6 19 21 16 2 . 26 74 34 27 29 1 18 25 7 18 61 28 34 36 AOE 1794 | . 47 17 50 . 97 40 43 38 19 . 23 36 17 9 128 12 . . 12 . . . . 61 96 52 . . 106 47 26 15 18 26 19 33 10 . 33 . 19 645 Terrain Rammed . | . . . . . . . . . . . . . . . . . . . . . . . . . . . . . . . . . . . . . . . . . . . Walls Destroyed . | . . . . . . . . . . . . . . . . . . . . . . . . . . . . . . . . . . . . . . . . . . . Machines Disabled . | . . . . . . . . . . . . . . . . . . . . . . . . . . . . . . . . . . . . . . . . . . . Actions | -11 -10 -10 -9 -9 -9 -8 -8 -8 -8 -8 -7 -7 -7 -7 -7 -7 -7 -7 -6 -6 -6 -6 -6 -6 -5 -5 -5 -5 -4 -4 -4 -4 -4 -3 -3 -3 -2 -2 -2 -1 -1 -1 --------- Run | Yrd Mat Min Mat Sto Gar Mat Gar Mat Gar Mat Fac Gar Fac Gar Fac Low Low Zio Pro Fac Ext Cet Arc Hub Fac Upp Upp Zhi Pro Fac Upp Upp War Pro Res Tes Res Qua Sec Acc Com Ac0 Total 43976 | 170 1048 574 1083 823 690 1115 444 620 777 512 937 721 513 930 1282 1214 1246 1378 828 560 922 305 830 814 651 974 555 197 689 1383 1107 970 984 950 1523 1448 963 1073 1094 628 5896 2555 Wait 5643 | 18 115 12 146 58 23 47 17 24 38 9 46 75 52 47 154 69 83 . 290 84 106 19 392 129 78 40 12 . 18 113 561 327 168 73 156 368 38 66 168 30 1279 95 Move 31804 | 116 796 542 747 629 534 813 329 434 594 423 682 488 397 704 902 1100 1117 1367 497 336 677 229 347 500 453 836 505 159 577 946 461 573 641 812 1082 701 835 827 506 406 4117 2067 Hop . | . . . . . . . . . . . . . . . . . . . . . . . . . . . . . . . . . . . . . . . . . . . Pick Up 552 | 7 23 . 20 15 4 27 2 15 8 7 21 11 5 23 24 2 4 2 . 8 2 5 5 12 9 6 2 7 3 28 6 1 11 3 25 30 14 8 30 8 83 26 Fast Attach 366 | 5 4 . 7 8 1 9 . 6 2 2 14 2 5 7 20 5 2 2 6 2 4 8 2 11 5 10 1 4 4 16 5 4 11 2 39 19 10 22 24 10 31 15 Attach 275 | 2 7 . 5 8 8 8 2 7 6 1 16 7 3 4 21 3 2 1 2 11 4 . 3 12 8 4 2 6 5 16 . . 5 4 7 8 5 5 14 3 12 28 Detach 189 | . 2 . 1 4 5 9 . 6 . 1 8 2 2 4 11 2 . 1 3 9 2 3 2 5 8 1 . 4 4 14 3 1 6 3 9 10 4 4 4 2 16 14 Swap 915 | . 22 4 25 16 13 33 10 16 28 8 17 24 14 14 15 . 2 . 3 18 8 7 2 25 28 15 13 1 20 56 10 12 21 14 56 59 21 40 73 48 46 58 Drop 741 | . 8 . 24 26 4 30 . 18 4 10 18 9 6 31 38 6 6 3 6 4 5 12 5 7 11 13 . 9 8 41 7 4 17 5 59 45 21 25 50 14 106 26 Fire 3168 | 22 69 14 100 49 64 126 69 85 85 45 108 101 23 39 87 21 30 2 19 86 46 22 72 107 50 46 18 7 49 150 54 48 96 33 88 204 15 75 223 107 188 226 Melee 109 | . . . 2 2 3 10 7 9 9 4 4 2 4 45 8 . . . . . . . . . . . . . . . . . . . . . . . . . . . Ram . | . . . . . . . . . . . . . . . . . . . . . . . . . . . . . . . . . . . . . . . . . . . Kick . | . . . . . . . . . . . . . . . . . . . . . . . . . . . . . . . . . . . . . . . . . . . Crush 69 | . 2 2 6 8 . 3 . . 1 2 3 . 2 . 2 6 . . 1 2 7 . . 3 1 . . . . 3 . . . . 2 4 . 1 1 . 7 . Escape Stasis 15 | . . . . . . . 8 . 2 . . . . 3 . . . . . . 2 . . . . . . . . . . . . . . . . . . . . . Rewire 90 | . . . . . 31 . . . . . . . . . . . . . . . 51 . . . . 3 2 . 1 . . . . 1 . . . . . . 1 . Trap 10 | . . . . . . . . . . . . . . . . . . . . . . . . . . . . . . . . . . . . . . . . . 10 . Miscellaneous 30 | . . . . . . . . . . . . . . 9 . . . . 1 . 8 . . 3 . . . . . . . . 8 . . . . . 1 . . . Route ------- -11/Scrapyard -10/Materials (discovered 5 exits: *Mat x3 / [*Min] / Sub) -10/Mines (discovered 2 exits: *Mat x2) -9/Materials (discovered 5 exits: *Mat x3 / *Min / *Sto) -9/Storage (discovered 3 exits: *Mat / Rec / Gar) -9/Garrison (discovered 2 exits: *Mat x2) -8/Materials (discovered 4 exits: *Fac x3 / Gar) -8/Garrison (discovered 3 exits: *Mat x3) -8/Materials (discovered 2 exits: *Fac / Gar) -8/Garrison (discovered 3 exits: *Mat x3) -8/Materials -7/Factory (discovered 5 exits: *Fac x2 / Low x2 / Gar) -7/Garrison (discovered 3 exits: *Fac x3) -7/Factory -7/Garrison (discovered 2 exits: *Fac x2) -7/Factory (discovered 2 exits: *Low x2) -7/Lower Caves -7/Lower Caves (discovered 2 exits: *Fac / *Zio) -7/Zion -6/Proximity Caves -6/Factory (discovered 4 exits: *Fac x2 / Low / *Ext) -6/Extension (discovered 2 exits: *Fac / *Cet) -6/Cetus (discovered 2 exits: *Fac / *Arc) -6/Archives (discovered 3 exits: *Fac / *Hub x2) -6/Hub_04(d) -5/Factory -5/Upper Caves -5/Upper Caves -5/Zhirov -4/Proximity Caves -4/Factory (discovered 6 exits: Res x3 / *Upp x2 / Arm) -4/Upper Caves -4/Upper Caves (discovered 2 exits: *Res / *War) -4/Warlord -3/Proximity Caves -3/Research (discovered 4 exits: *Res x2 / *Tes x2) -3/Testing -2/Research (discovered 3 exits: *Acc x2 / *Qua) -2/Quarantine -2/Section 7 -1/Access -1/Command (discovered 3 exits: [*Sur x2] / *Ac0) -1/Access_0 To Fleet Rendezvous History --------- Turn | Location | Event 5 | -11/Scrapyard | Discovered new exit (range 15) 277 | -11/Scrapyard | Entered Materials 316 | -10/Materials | Build established: Mutant 366 | -10/Materials | Discovered new exit (range 6) 541 | -10/Materials | Discovered new exit (range 14) 724 | -10/Materials | Discovered new exit (range 3) 871 | -10/Materials | Discovered new exit (range 3) 877 | -10/Materials | Derelicts attacked the area 1021 | -10/Materials | Core integrity fell below 50% 1307 | -10/Materials | Build established: Scavenger-Mutant 1315 | -10/Materials | Learned Storage emergency access door positions 1364 | -10/Materials | Identified exit to Subcaves 1403 | -10/Materials | Learned 2 Mines zone layouts 1431 | -10/Materials | Learned Storage emergency access door positions 1451 | -10/Materials | Learned 2 Storage zone layouts 1461 | -10/Materials | Learned 4 Subcaves zone layouts 1488 | -10/Materials | Identified exit to Materials 1548 | -10/Materials | Loaded intel: 7 terminal locations 1829 | -10/Materials | Repaired Lgt. Treads 1857 | -10/Materials | Repaired Lgt. Treads 1896 | -10/Materials | Repaired Lgt. Nuclear Core 1936 | -10/Materials | Entered Mines 1981 | -10/Mines | Learned Materials terminal intel 2034 | -10/Mines | Assembled infested the area 2112 | -10/Mines | Discovered exit to Materials (range 5) 2420 | -10/Mines | Learned Materials trap positions 2477 | -10/Mines | Discovered exit to Materials (range 12) 2811 | -10/Mines | Entered Materials 2811 | -9/Materials | Accompanied by 2 allies 2811 | -9/Materials | Evolved 2 slots: Propulsion x1, Utility x1 2812 | -9/Materials | Identified exit to Mines 2813 | -9/Materials | Loaded intel: 22 trap records 2814 | -9/Materials | Loaded intel: 12 terminal locations 2816 | -9/Materials | Led the pair of lost Derelicts to an unsafe place 3160 | -9/Materials | Discovered new exit (range 7) 3729 | -9/Materials | Discovered new exit (range 6) 3804 | -9/Materials | Learned Storage garrison access intel 3831 | -9/Materials | Identified exit to Storage 3877 | -9/Materials | Identified exit to Materials 3881 | -9/Materials | Repaired Lgt. Treads 3909 | -9/Materials | Repaired Lgt. Treads 3994 | -9/Materials | Learned location of Mines (-8) 4038 | -9/Materials | Learned location of Zion (-7) 4170 | -9/Materials | Learned Storage trap positions 4223 | -9/Materials | Learned Storage trap positions 4411 | -9/Materials | First assault squad dispatched 4518 | -9/Materials | Build established: Mutant 4519 | -9/Materials | Entered Storage 4520 | -9/Storage | Identified exit to Recycling 4521 | -9/Storage | Loaded intel: 15 trap records 4522 | -9/Storage | Loaded intel: 1 garrison access location 4764 | -9/Storage | Found Prototype Protection 4764 | -9/Storage | Identified Lgt. Regenerative Plating 5073 | -9/Storage | Discovered exit to Materials (range 16) 5135 | -9/Storage | Met 01-MTF 5397 | -9/Storage | Garrison activated, responded to threat 5486 | -9/Storage | Learned location of 2 exits from Materials 5522 | -9/Storage | Learned location of Mines (-9) 5565 | -9/Storage | Learned Materials trap positions 5574 | -9/Storage | Learned location of 1 exit from Storage 5597 | -9/Storage | Core integrity fell below 50% 5617 | -9/Storage | Destroyed 01-MTF 5626 | -9/Storage | Found Corrupted Prototype Energy Gun 5629 | -9/Storage | Lost 3 parts (3n) 5699 | -9/Storage | Identified exit to Garrison 5829 | -9/Storage | Assisted by bots powering up and referring to "LRC-V3" 5915 | -9/Storage | Garrison activated, responded to threat 5919 | -9/Storage | Entered Garrison 5919 | -9/Garrison | Accompanied by 3 allies 5970 | -9/Garrison | Phase Generator disabled 6059 | -9/Garrison | Triggered checkpoint 6099 | -9/Garrison | Garrison Relay disabled 6339 | -9/Garrison | Triggered checkpoint 6347 | -9/Garrison | Triggered checkpoint 6386 | -9/Garrison | Destroyed 9 combat bots 6595 | -9/Garrison | Triggered checkpoint 6608 | -9/Garrison | Spotted B-75 Beast 6651 | -9/Garrison | Garrison Relay disabled 6695 | -9/Garrison | Core integrity fell below 20% 6711 | -9/Garrison | Destroyed B-75 Beast 6779 | -9/Garrison | Discovered exit to Materials (range 12) 6988 | -9/Garrison | Build established: Scavenger-Mutant 7039 | -9/Garrison | Triggered checkpoint 7151 | -9/Garrison | Triggered checkpoint 7191 | -9/Garrison | Lost 3 allies 7204 | -9/Garrison | Garrison Relay disabled 7236 | -9/Garrison | Discovered exit to Materials (range 14) 7249 | -9/Garrison | Rescued a captive Derelict 7250 | -9/Garrison | Rescued a captive Derelict 7303 | -9/Garrison | Garrison Relay disabled 7343 | -9/Garrison | Identified 01-MTF's Shockpuncher 7347 | -9/Garrison | System corruption reached 10% 7350 | -9/Garrison | Entered Materials 7350 | -8/Materials | Accompanied by 2 allies 7350 | -8/Materials | Evolved 2 slots: Propulsion x1, Utility x1 7351 | -8/Materials | Identified exit to Factory 7352 | -8/Materials | Loaded intel: 16 trap records 7646 | -8/Materials | Discovered exit to Factory (range 5) 7882 | -8/Materials | Repaired Centrium Light Armor Plating? 7971 | -8/Materials | Build established: Mutant 8697 | -8/Materials | Build established: Scavenger-Mutant 8950 | -8/Materials | First assault squad dispatched 9031 | -8/Materials | Destroyed 9 combat bots 9682 | -8/Materials | Identified exit to Garrison 9682 | -8/Materials | Entered Garrison 9721 | -8/Garrison | Assembled breached garrison interior 9737 | -8/Garrison | Core integrity fell below 50% 9770 | -8/Garrison | Garrison Relay disabled 9936 | -8/Garrison | Destroyed 10 combat bots 10096 | -8/Garrison | Garrison Relay disabled 10288 | -8/Garrison | Discovered new exit (range 10) 10484 | -8/Garrison | Discovered new exit (range 48) 10484 | -8/Garrison | Discovered new exit (range 45) 10484 | -8/Garrison | Discovered new exit (range 19) 10531 | -8/Garrison | Garrison Relay disabled 10534 | -8/Garrison | Garrison Relay disabled 10538 | -8/Garrison | Garrison Relay disabled 10551 | -8/Garrison | Garrison Relay disabled 10649 | -8/Garrison | Garrison Relay disabled 10707 | -8/Garrison | Entered Materials 11107 | -8/Materials | First assault squad dispatched 11584 | -8/Materials | Learned Factory stockpile data 11646 | -8/Materials | Learned Factory emergency access door positions 11788 | -8/Materials | Learned location of 2 exits from Factory 11829 | -8/Materials | Garrison activated, responded to threat 11922 | -8/Materials | Discovered exit to Factory (range 11) 12076 | -8/Materials | Identified exit to Garrison 12090 | -8/Materials | Entered Garrison 12092 | -8/Garrison | Triggered checkpoint 12226 | -8/Garrison | Core integrity fell below 20% 12253 | -8/Garrison | Destroyed 11 combat bots 12274 | -8/Garrison | Rescued a captive Derelict 12284 | -8/Garrison | Rescued a captive Derelict 12300 | -8/Garrison | Garrison Relay disabled 12368 | -8/Garrison | Triggered checkpoint 12368 | -8/Garrison | Triggered checkpoint 12384 | -8/Garrison | Triggered checkpoint 12397 | -8/Garrison | Destroyed 8 combat bots 12576 | -8/Garrison | Triggered checkpoint 12593 | -8/Garrison | Garrison Relay disabled 12689 | -8/Garrison | Discovered new exit (range 10) 12776 | -8/Garrison | Garrison Relay disabled 12776 | -8/Garrison | Garrison Relay disabled 12778 | -8/Garrison | Garrison Relay disabled 12778 | -8/Garrison | Garrison Relay disabled 12950 | -8/Garrison | Build established: Mutant 12997 | -8/Garrison | Discovered new exit (range 10) 13139 | -8/Garrison | Spotted B-75 Beast 13148 | -8/Garrison | Spotted B-75 Beast 13194 | -8/Garrison | Destroyed B-75 Beast 13218 | -8/Garrison | Lost 3 parts (2n1u) 13230 | -8/Garrison | Rewired B-75 Beast 13312 | -8/Garrison | Triggered checkpoint 13313 | -8/Garrison | Discovered new exit (range 14) 13347 | -8/Garrison | Entered Materials 13347 | -8/Materials | Accompanied by 1 ally 14143 | -8/Materials | Discovered exit to Factory (range 16) 14147 | -8/Materials | First assault squad dispatched 14179 | -8/Materials | System corruption reached 10% 14182 | -8/Materials | Entered Factory 14182 | -7/Factory | Evolved 2 slots: Power x1, Utility x1 14183 | -7/Factory | Identified exit to Lower Caves 14184 | -7/Factory | Identified exit to Factory 14428 | -7/Factory | Repaired Lyr. Medium Armor Plating? 14665 | -7/Factory | Discovered exit to Factory (range 5) 14715 | -7/Factory | Build established: Scavenger-Mutant 15017 | -7/Factory | Cargo convoy interrupted 15084 | -7/Factory | Destroyed 9 combat bots 15086 | -7/Factory | Lost 8 parts (2p4n1u1w) 15147 | -7/Factory | Found PL-3XN's Ring of Power 15260 | -7/Factory | Fabricated Plasma Cutter (x2) 15382 | -7/Factory | First assault squad dispatched 15812 | -7/Factory | Identified exit to Garrison 15815 | -7/Factory | Entered Garrison 16061 | -7/Garrison | Triggered checkpoint 16134 | -7/Garrison | Garrison Relay disabled 16246 | -7/Garrison | Triggered checkpoint 16287 | -7/Garrison | Destroyed 8 combat bots 16386 | -7/Garrison | Discovered new exit (range 14) 16427 | -7/Garrison | Triggered checkpoint 16466 | -7/Garrison | Discovered new exit (range 6) 16541 | -7/Garrison | Triggered checkpoint 16597 | -7/Garrison | Garrison Relay disabled 16663 | -7/Garrison | Core integrity fell below 50% 16696 | -7/Garrison | Destroyed 7 combat bots 16699 | -7/Garrison | Lost 4 parts (1p2n1u) 16793 | -7/Garrison | Discovered new exit (range 15) 16881 | -7/Garrison | Triggered checkpoint 16991 | -7/Garrison | Garrison Relay disabled 17021 | -7/Garrison | Triggered checkpoint 17089 | -7/Garrison | Entered Factory 17233 | -7/Factory | Fabricated M-13 Machinist? 17489 | -7/Factory | First assault squad dispatched 17797 | -7/Factory | Identified exit to Garrison 17889 | -7/Factory | Entered Garrison 17962 | -7/Garrison | Garrison Relay disabled 17971 | -7/Garrison | Triggered checkpoint 17993 | -7/Garrison | Found embedded Infiltrators 18143 | -7/Garrison | Triggered checkpoint 18143 | -7/Garrison | Triggered checkpoint 18256 | -7/Garrison | Rescued a captive Derelict 18259 | -7/Garrison | Rescued a captive Derelict 18305 | -7/Garrison | Garrison Relay disabled 18339 | -7/Garrison | Triggered checkpoint 18372 | -7/Garrison | Discovered new exit (range 15) 18643 | -7/Garrison | Triggered checkpoint 18690 | -7/Garrison | Garrison Relay disabled 18716 | -7/Garrison | Discovered new exit (range 15) 19088 | -7/Garrison | Attempted to access garrison exit controls, blocked by remote lockdown 19352 | -7/Garrison | Phase Generator disabled 19385 | -7/Garrison | Entered Factory 19385 | -7/Factory | Accompanied by 3 allies 20200 | -7/Factory | Build established: Mutant 20585 | -7/Factory | First assault squad dispatched 21004 | -7/Factory | Garrison activated, responded to threat 21005 | -7/Factory | Cargo convoy interrupted 21032 | -7/Factory | Destroyed 10 combat bots 21093 | -7/Factory | Core integrity fell below 20% 21127 | -7/Factory | Destroyed 7 combat bots 21168 | -7/Factory | Found Prototype Protection 21342 | -7/Factory | Entered Lower Caves 21349 | -7/Lower Caves | Met a Warlord Commander 21350 | -7/Lower Caves | Learned location of Warlord (-4) 21351 | -7/Lower Caves | Warlord Commander delivered Encrypted Comm Array 21356 | -7/Lower Caves | Found Encrypted Comm Array 21889 | -7/Lower Caves | Encountered a Warlord checkpoint 22528 | -7/Lower Caves | Learned Factory interactive machine intel 22666 | -7/Lower Caves | Spotted B-75 Beast 22698 | -7/Lower Caves | Destroyed B-75 Beast 22801 | -7/Lower Caves | Discovered new exit (range 15) 23249 | -7/Lower Caves | Entered another Lower Caves area 23339 | -7/Lower Caves | Discovered exit to Factory (range 5) 23774 | -7/Lower Caves | Learned Factory garrison access intel 23957 | -7/Lower Caves | Learned Factory trap positions 24105 | -7/Lower Caves | Spotted B-75 Beast 24126 | -7/Lower Caves | Destroyed B-75 Beast 24807 | -7/Lower Caves | Found DRS Beacon 24867 | -7/Lower Caves | Discovered new exit (range 3) 25210 | -7/Lower Caves | Entered Zion 25269 | -7/Zion | System corruption cleaned by Quarantine Array 25470 | -7/Zion | Discovered new exit (range 15) 25651 | -7/Zion | Learned 8 Factory zone layouts 26073 | -7/Zion | Met Imprinter 27409 | -7/Zion | Entered Proximity Caves 27410 | -6/Proximity Caves | Activated DRS Beacon 27880 | -6/Proximity Caves | Attracted the attention of an 0b10 base 27924 | -6/Proximity Caves | Learned Research security intel 27924 | -6/Proximity Caves | Learned Research stockpile data 27924 | -6/Proximity Caves | Learned location of 2 exits from Upper Caves 28534 | -6/Proximity Caves | Discovered exit to Factory (range 9) 28564 | -6/Proximity Caves | Entered Factory 28564 | -6/Factory | Evolved 2 slots: Utility x2 28565 | -6/Factory | Identified exit to Lower Caves 28566 | -6/Factory | Identified exit to Extension 28566 | -6/Factory | Identified exit to Factory 28567 | -6/Factory | Loaded intel: 116 trap records 28568 | -6/Factory | Loaded intel: 53 interactive machine locations 28569 | -6/Factory | Loaded intel: 4 garrison access locations 28825 | -6/Factory | Identified Active Cooling Armor 28881 | -6/Factory | Destroyed 8 combat bots 28914 | -6/Factory | First assault squad dispatched 29293 | -6/Factory | Discovered exit to Factory (range 14) 29322 | -6/Factory | Spotted B-75 Beast 29332 | -6/Factory | Destroyed B-75 Beast 29457 | -6/Factory | Entered Extension 29858 | -6/Extension | Spotted B-75 Beast 29868 | -6/Extension | Destroyed B-75 Beast 29898 | -6/Extension | Rescued A7 29958 | -6/Extension | Rescued a captive Derelict 30053 | -6/Extension | Rescued a captive Derelict 30059 | -6/Extension | Rescued a captive Derelict 30071 | -6/Extension | Rescued a captive Derelict 30072 | -6/Extension | Rescued a captive Derelict 30403 | -6/Extension | Spotted B-75 Beast 30421 | -6/Extension | Allies destroyed B-75 Beast 30490 | -6/Extension | Build established: Commander-Mutant 30524 | -6/Extension | Rescued a captive Derelict 30525 | -6/Extension | Rescued a captive Derelict 30627 | -6/Extension | Rescued a captive Derelict 30857 | -6/Extension | First assault squad dispatched 30910 | -6/Extension | Found Med. Regenerative Plating 30914 | -6/Extension | Lost 11 allies 30977 | -6/Extension | Discovered exit to Factory (range 10) 30979 | -6/Extension | Discovered new exit (range 6) 30996 | -6/Extension | Entered Cetus 30996 | -6/Cetus | Accompanied by 8 allies (A7) 31001 | -6/Cetus | Acquired a Cetus Manufacturing Module code from A7 31018 | -6/Cetus | Spotted Cetus Guard 31018 | -6/Cetus | Spotted Cetus Guard 31020 | -6/Cetus | Spotted Cetus Guard 31020 | -6/Cetus | Spotted Cetus Guard 31029 | -6/Cetus | Allies destroyed Cetus Guard 31031 | -6/Cetus | Allies destroyed Cetus Guard 31039 | -6/Cetus | Allies destroyed Cetus Guard 31084 | -6/Cetus | Lost 5 allies 31085 | -6/Cetus | Allies destroyed Cetus Guard 31169 | -6/Cetus | Started Cetus Manufacturing Module 31188 | -6/Cetus | Discovered new exit (range 15) 31194 | -6/Cetus | Manufactured an Enhanced Grunt 31219 | -6/Cetus | Manufactured an Enhanced Grunt 31219 | -6/Cetus | Spotted Cetus Guard 31220 | -6/Cetus | Spotted Cetus Guard 31226 | -6/Cetus | Spotted Cetus Guard 31230 | -6/Cetus | Destroyed Cetus Guard 31230 | -6/Cetus | Destroyed Cetus Guard 31230 | -6/Cetus | Spotted Cetus Guard 31231 | -6/Cetus | Destroyed Cetus Guard 31233 | -6/Cetus | Destroyed Cetus Guard 31244 | -6/Cetus | Manufactured an Enhanced Grunt 31250 | -6/Cetus | Discovered exit to Factory (range 15) 31259 | -6/Cetus | Met Revision 17 31269 | -6/Cetus | Manufactured an Enhanced Grunt 31294 | -6/Cetus | Manufactured an Enhanced Grunt 31458 | -6/Cetus | Murdered A7 31472 | -6/Cetus | Extracted ID and sensor layout for unrecognized location from A7's data core 31486 | -6/Cetus | Entered Archives 31486 | -6/Archives | Accompanied by 5 allies 31618 | -6/Archives | Unable to access archive contents 31646 | -6/Archives | Discovered new exit (range 15) 31789 | -6/Archives | Discovered exit to Factory (range 15) 31813 | -6/Archives | Discovered new exit (range 16) 31881 | -6/Archives | Build established: Scavenger-Mutant 32386 | -6/Archives | Build established: Commander-Mutant 33231 | -6/Archives | Entered Hub_04(d) 33231 | -6/Hub_04(d) | Accompanied by 5 allies 33397 | -6/Hub_04(d) | Identified exit to Garrison 33413 | -6/Hub_04(d) | Garrison activated, responded to threat 33572 | -6/Hub_04(d) | Spotted B-75 Beast 33581 | -6/Hub_04(d) | First assault squad dispatched 33746 | -6/Hub_04(d) | Build established: Scavenger-Mutant 33820 | -6/Hub_04(d) | Destroyed B-75 Beast 33910 | -6/Hub_04(d) | Discovered exit to Factory (range 16) 34059 | -6/Hub_04(d) | Network Hub disabled 34137 | -6/Hub_04(d) | Spotted Lightning 34140 | -6/Hub_04(d) | Spotted Lightning 34141 | -6/Hub_04(d) | Spotted Lightning 34150 | -6/Hub_04(d) | System corruption reached 10% 34177 | -6/Hub_04(d) | Destroyed Lightning 34252 | -6/Hub_04(d) | System corruption reached 30% 34260 | -6/Hub_04(d) | Destroyed Lightning 34288 | -6/Hub_04(d) | Lost 5 parts (2p1u2w) 34291 | -6/Hub_04(d) | Found Corrupted Prototype Device 34368 | -6/Hub_04(d) | Destroyed 11 combat bots 34375 | -6/Hub_04(d) | Lost 3 parts (1n1u1w) 34460 | -6/Hub_04(d) | Destroyed Lightning 34471 | -6/Hub_04(d) | Found Prototype Device 34471 | -6/Hub_04(d) | Identified Exp. EM Disruption Field 34598 | -6/Hub_04(d) | Identified Exp. Thermal Shield 34613 | -6/Hub_04(d) | Entered Factory 34613 | -5/Factory | Evolved 2 slots: Utility x2 34614 | -5/Factory | Identified exit to Upper Caves 34694 | -5/Factory | Spotted B-75 Beast 34761 | -5/Factory | Fabricated M-13 Machinist? 35192 | -5/Factory | Repaired Centrium Heavy Treads? 35335 | -5/Factory | Repaired Centrium Medium Armor Plating 35513 | -5/Factory | First assault squad dispatched 35642 | -5/Factory | Entered Upper Caves 35643 | -5/Upper Caves | Identified exit to Upper Caves 35753 | -5/Upper Caves | Attracted the attention of an 0b10 outpost 36111 | -5/Upper Caves | Attracted the attention of an 0b10 checkpoint 36171 | -5/Upper Caves | Learned location of 1 exit from Factory 36414 | -5/Upper Caves | Spotted B-75 Beast 36765 | -5/Upper Caves | Learned Factory emergency access door positions 36780 | -5/Upper Caves | Encountered a Warlord checkpoint 37197 | -5/Upper Caves | Entered another Upper Caves area 37198 | -5/Upper Caves | Identified exit to Zhirov 37315 | -5/Upper Caves | System corruption reached 10% 37552 | -5/Upper Caves | Attracted the attention of an 0b10 checkpoint 37639 | -5/Upper Caves | Encountered a Warlord checkpoint 38084 | -5/Upper Caves | Entered Zhirov 38085 | -5/Zhirov | Discovered new exit (range 3) 38115 | -5/Zhirov | Met Zhirov 38150 | -5/Zhirov | Learned location of Quarantine (-2) 38150 | -5/Zhirov | Learned location of Testing (-3) 38150 | -5/Zhirov | Learned location of Command (-1) 38166 | -5/Zhirov | Zhirov requested help retrieving the SGEMP Prototype 38190 | -5/Zhirov | Found Alien Artifact 38190 | -5/Zhirov | Identified Integrated Reactor 38190 | -5/Zhirov | Installed Integrated Reactor, increased core energy generation (+10) 38210 | -5/Zhirov | Found Alien Artifact 38378 | -5/Zhirov | Entered Proximity Caves 38385 | -4/Proximity Caves | Learned 4 Research zone layouts 38776 | -4/Proximity Caves | Attracted the attention of an 0b10 base 38776 | -4/Proximity Caves | Learned Extension garrison access intel 38776 | -4/Proximity Caves | Learned Research emergency access door positions 38776 | -4/Proximity Caves | Learned Factory trap positions 38819 | -4/Proximity Caves | Destroyed 11 combat bots 38963 | -4/Proximity Caves | Attracted the attention of an 0b10 checkpoint 39092 | -4/Proximity Caves | Learned location of 1 exit from Research 39404 | -4/Proximity Caves | Discovered new exit (range 15) 39482 | -4/Proximity Caves | Entered Factory 39482 | -4/Factory | Evolved 2 slots: Utility x2 39483 | -4/Factory | Identified exit to Research 39484 | -4/Factory | Loaded intel: 83 trap records 39549 | -4/Factory | Identified exit to Upper Caves 39549 | -4/Factory | Identified exit to Armory 39719 | -4/Factory | Joined by Warlord Geek squad 40148 | -4/Factory | Learned location of 1 exit from Research 40207 | -4/Factory | Spotted B-86 Titan 40237 | -4/Factory | Learned Research trap positions 40266 | -4/Factory | Learned Factory emergency access door positions 40284 | -4/Factory | Destroyed B-86 Titan 40285 | -4/Factory | Learned Research trap positions 40293 | -4/Factory | Learned location of 1 exit from Upper Caves 40294 | -4/Factory | Learned 4 Upper Caves zone layouts 40304 | -4/Factory | Learned Factory trap positions 40324 | -4/Factory | Learned location of 1 exit from Upper Caves 40564 | -4/Factory | Build established: Hacker-Mutant 40577 | -4/Factory | Found Quantum Capacitor 40842 | -4/Factory | Spotted B-86 Titan 40869 | -4/Factory | Destroyed B-86 Titan 40871 | -4/Factory | Repaired Centrium Heavy Treads? 40939 | -4/Factory | Central database locked down 41112 | -4/Factory | Repaired Broken Centrium Heavy Treads? 41193 | -4/Factory | Fabricated Adv. Terrain Scan Processor (x2) 41295 | -4/Factory | Fabricated Assault Drone Bay (x1) 41321 | -4/Factory | System corruption reached 10% 41482 | -4/Factory | First assault squad dispatched 41748 | -4/Factory | Build established: Scavenger-Mutant 41824 | -4/Factory | Entered Upper Caves 41825 | -4/Upper Caves | Identified exit to Upper Caves 41946 | -4/Upper Caves | Spotted B-86 Titan 41963 | -4/Upper Caves | Rewired B-86 Titan 42824 | -4/Upper Caves | Build established: Hacker-Mutant 43226 | -4/Upper Caves | Entered another Upper Caves area 43227 | -4/Upper Caves | Identified exit to Warlord 43235 | -4/Upper Caves | Discovered exit to Research (range 16) 43611 | -4/Upper Caves | Attracted the attention of an 0b10 outpost 44000 | -4/Upper Caves | Build established: Scavenger-Mutant 44287 | -4/Upper Caves | Encountered a Warlord checkpoint 44537 | -4/Upper Caves | Spotted B-86 Titan 44553 | -4/Upper Caves | Entered Warlord 44608 | -4/Warlord | System corruption cleaned by Quarantine Array 44831 | -4/Warlord | Learned Testing trap positions 44834 | -4/Warlord | Learned Factory fabricator intel 44834 | -4/Warlord | Learned Research garrison access intel 44884 | -4/Warlord | Discovered new exit (range 64) 44992 | -4/Warlord | Received a Watcher feed algorithm from an ecstatic Tinkerer 45143 | -4/Warlord | Met Warlord 45159 | -4/Warlord | Warlord's base attacked by MAIN.C 45177 | -4/Warlord | Found Prototype Device 45177 | -4/Warlord | Identified Thermal Barrier 45182 | -4/Warlord | Found Prototype Processor 45182 | -4/Warlord | Identified Exp. Target Analyzer 45191 | -4/Warlord | Found Prototype Device 45191 | -4/Warlord | Identified Exp. Cloaking Device 45196 | -4/Warlord | Found Prototype Reactor 45196 | -4/Warlord | Identified Vortex Chain Reactor 45315 | -4/Warlord | Found Prototype Energy Gun 45315 | -4/Warlord | Identified Vortex Shotgun 45322 | -4/Warlord | Found Vortex Shotgun 45328 | -4/Warlord | Found Prototype Energy Cannon 45329 | -4/Warlord | Identified Vortex Driver 45338 | -4/Warlord | Found Prototype Launcher 45371 | -4/Warlord | Found Vortex Driver 45509 | -4/Warlord | Warlord forces counterattacked 45519 | -4/Warlord | Spotted Executioner 45523 | -4/Warlord | Spotted Striker 45524 | -4/Warlord | Spotted Striker 45538 | -4/Warlord | Destroyed Striker 45538 | -4/Warlord | Destroyed Executioner 45557 | -4/Warlord | Lost 3 allies 45565 | -4/Warlord | Destroyed 7 combat bots 45581 | -4/Warlord | Spotted Executioner 45588 | -4/Warlord | Spotted Executioner 45631 | -4/Warlord | Found Prototype Processor 45631 | -4/Warlord | Identified Exp. Core Analyzer 45635 | -4/Warlord | Lost 8 allies 45642 | -4/Warlord | Found Prototype Device 45642 | -4/Warlord | Identified Adv. Kinecellerator 45659 | -4/Warlord | Spotted Striker 45661 | -4/Warlord | Found Exp. Core Analyzer 45678 | -4/Warlord | Spotted Executioner 45706 | -4/Warlord | Destroyed Executioner 45759 | -4/Warlord | Spotted Striker 45759 | -4/Warlord | Spotted Executioner 45766 | -4/Warlord | Lost 20 allies 45771 | -4/Warlord | Destroyed Striker 45773 | -4/Warlord | Destroyed Executioner 45808 | -4/Warlord | Destroyed 12 combat bots 45834 | -4/Warlord | Warlord base infiltrated, sounded retreat 45906 | -4/Warlord | Lost 5 allies 45961 | -4/Warlord | Spotted Executioner 45990 | -4/Warlord | Found Prototype Device 46036 | -4/Warlord | Lost 6 allies 46062 | -4/Warlord | Entered Proximity Caves 46135 | -3/Proximity Caves | Spotted B-86 Titan 46152 | -3/Proximity Caves | Identified Exp. Shock Absorption System 46188 | -3/Proximity Caves | Destroyed B-86 Titan 47789 | -3/Proximity Caves | Discovered exit to Research (range 9) 48158 | -3/Proximity Caves | Entered Research 48158 | -3/Research | Evolved 2 slots: Propulsion x2 48159 | -3/Research | Identified exit to Testing 48160 | -3/Research | Identified exit to Research 48162 | -3/Research | Loaded intel: 77 trap records 48166 | -3/Research | Loaded intel: 3 garrison access locations 48358 | -3/Research | Revision forces began assault on 0b10 48425 | -3/Research | Met up with Revision 17++ 48521 | -3/Research | Repaired Centrium Heavy Treads? 48642 | -3/Research | Repaired Centrium Heavy Treads? 48858 | -3/Research | Research terminal network offline 48939 | -3/Research | Spotted Executioner 48942 | -3/Research | Spotted Striker 48953 | -3/Research | Spotted Striker 49223 | -3/Research | Found Gamma Bomb Array 49244 | -3/Research | Build established: Trapper-Mutant 49262 | -3/Research | Found Prototype Launcher 49286 | -3/Research | Identified Adv. Micro-nuke Launcher 49635 | -3/Research | Found Prototype Launcher 49658 | -3/Research | Identified Hellfire Missile Launcher 49695 | -3/Research | Discovered exit to Research (range 12) 49963 | -3/Research | Spotted Striker 49985 | -3/Research | Destroyed Striker 50114 | -3/Research | Spotted Executioner 50123 | -3/Research | Destroyed Executioner 50329 | -3/Research | Lost 3 allies 50341 | -3/Research | Entered Testing 50342 | -3/Testing | Loaded intel: 20 trap records 50782 | -3/Testing | Fabricated Quantum Capacitor (x2) 51134 | -3/Testing | First assault squad dispatched 51174 | -3/Testing | Found Prototype Energy Cannon 51198 | -3/Testing | Identified Potential Cannon 51591 | -3/Testing | Discovered exit to Research (range 21) 51689 | -3/Testing | Found Prototype Protection 51689 | -3/Testing | Identified SHELL Armor 51773 | -3/Testing | Scanned by Researcher 51934 | -3/Testing | Found Prototype Energy Cannon 51934 | -3/Testing | Identified Null Cannon 52037 | -3/Testing | Spotted PY-JNL5WGA317 52049 | -3/Testing | Destroyed PY-JNL5WGA317 52149 | -3/Testing | Destroyed 7 combat bots 52207 | -3/Testing | Destroyed 8 combat bots 52240 | -3/Testing | System corruption reached 10% 52254 | -3/Testing | Entered Research 52254 | -2/Research | Warlord forces began assault on 0b10 52254 | -2/Research | Evolved 2 slots: Power x1, Utility x1 52255 | -2/Research | Loaded intel: 70 trap records 52279 | -2/Research | Distinguished unit "The Professionals" dispatched to help 52279 | -2/Research | Distinguished unit "Smaug Mourners" dispatched to help 52336 | -2/Research | Met up with Warlord 52364 | -2/Research | Research machine network offline 52480 | -2/Research | Found Prototype Processor 52496 | -2/Research | Identified Spectral Analyzer 52848 | -2/Research | Borebot progress halted 52936 | -2/Research | Discovered new exit (range 15) 52970 | -2/Research | Identified exit to Access 52979 | -2/Research | Discovered new exit (range 23) 53072 | -2/Research | Borebot progress halted 53232 | -2/Research | Borebot progress halted 53235 | -2/Research | Found Corrupted Exp. Core Analyzer 53282 | -2/Research | Spotted Executioner 53288 | -2/Research | Spotted Executioner 53332 | -2/Research | Lost 3 allies 53470 | -2/Research | Discovered exit to Access (range 18) 53516 | -2/Research | Found Quantum Capacitor 53653 | -2/Research | Lost 3 allies 53668 | -2/Research | Entered Quarantine 53721 | -2/Quarantine | Cryocooling Duct disabled 53736 | -2/Quarantine | Ambient heat levels rising (+20) 53736 | -2/Quarantine | Non-combat units ordered to evacuate 54027 | -2/Quarantine | Found Alien Artifact 54239 | -2/Quarantine | Identified Dimensional Node Initializer 54239 | -2/Quarantine | Initialized slip node 54384 | -2/Quarantine | Discovered exit to Access (range 11) 54563 | -2/Quarantine | Found Prototype Processor 54565 | -2/Quarantine | Identified Exp. Armor Integrity Analyzer 54613 | -2/Quarantine | Identified Transdimensional Reconstructor 54613 | -2/Quarantine | Warped through subspace to slip node 54616 | -2/Quarantine | Found Alien Artifact 54623 | -2/Quarantine | Found Dimensional Node Initializer 54680 | -2/Quarantine | Found Alien Artifact 54680 | -2/Quarantine | Identified Core Reset Matrix 54680 | -2/Quarantine | Identified Subatomic Replicator 54680 | -2/Quarantine | Used Core Reset Matrix 54684 | -2/Quarantine | Detected hypermatrix surge 54684 | -2/Quarantine | Sensed 10 artifacts in vicinity 54788 | -2/Quarantine | Found Transdimensional Reconstructor 54982 | -2/Quarantine | Found Unknown Protection 54982 | -2/Quarantine | Identified Hvy. Reflective Plating 55068 | -2/Quarantine | Spotted Fortress 55120 | -2/Quarantine | Build established: Scavenger-Mutant 55171 | -2/Quarantine | Discovered new exit (range 6) 55180 | -2/Quarantine | Entered Section 7 55181 | -2/Section 7 | Sensed 17 artifacts in vicinity 55254 | -2/Section 7 | Found Integrated Dissipator 55254 | -2/Section 7 | Installed Integrated Dissipator, increased core heat dissipation (+20) 55288 | -2/Section 7 | Found Integrated Reactor 55288 | -2/Section 7 | Installed Integrated Reactor, increased core energy generation (+10) 55330 | -2/Section 7 | Found Integrated Reactor 55330 | -2/Section 7 | Installed Integrated Reactor, increased core energy generation (+10) 55519 | -2/Section 7 | Destroyed 10 combat bots 55525 | -2/Section 7 | Found Microwarp Drive 55583 | -2/Section 7 | Build established: Alien-Mutant 55595 | -2/Section 7 | Spotted B-90 Cyclops 55680 | -2/Section 7 | First assault squad dispatched 55692 | -2/Section 7 | Found Prototype Processor 55707 | -2/Section 7 | Identified Exp. Targeting Computer 55719 | -2/Section 7 | Spotted Alpha 7 55727 | -2/Section 7 | Spotted Alpha 7 55752 | -2/Section 7 | Destroyed 7 combat bots 55758 | -2/Section 7 | Destroyed Alpha 7 55762 | -2/Section 7 | Destroyed Alpha 7 55803 | -2/Section 7 | Found Prototype Device 55803 | -2/Section 7 | Identified Exp. ECM Suite 55870 | -2/Section 7 | Found Prototype Device 55876 | -2/Section 7 | Identified Exp. Shock Absorption System 56016 | -2/Section 7 | Found Prototype Device 56016 | -2/Section 7 | Identified Adv. Kinecellerator 56096 | -2/Section 7 | Spotted Executioner 56096 | -2/Section 7 | Spotted Executioner 56118 | -2/Section 7 | Destroyed Executioner 56141 | -2/Section 7 | Destroyed Executioner 56151 | -2/Section 7 | Build established: Scavenger-Mutant 56162 | -2/Section 7 | Found Prototype Processor 56162 | -2/Section 7 | Identified Exp. Core Analyzer 56165 | -2/Section 7 | Found Exp. Core Analyzer 56207 | -2/Section 7 | Spotted Executioner 56207 | -2/Section 7 | Spotted Executioner 56210 | -2/Section 7 | Destroyed Executioner 56214 | -2/Section 7 | Destroyed Executioner 56271 | -2/Section 7 | Spotted B-99 Colossus 56276 | -2/Section 7 | Core integrity fell below 50% 56302 | -2/Section 7 | Found LRC Insulator 56302 | -2/Section 7 | Installed LRC Insulator, gained EM resistance (25) 56304 | -2/Section 7 | Found LRC Energy Well 56304 | -2/Section 7 | Installed LRC Energy Well, increased energy storage capacity (+250) 56524 | -2/Section 7 | Build established: Alien-Mutant 56550 | -2/Section 7 | Discovered exit to Access (range 8) 56555 | -2/Section 7 | Entered Access 56555 | -1/Access | Evolved 2 slots: Power x1, Utility x1 56856 | -1/Access | Build established: Generator-Mutant 57352 | -1/Access | First assault squad dispatched 57384 | -1/Access | Discovered new exit (range 3) 57386 | -1/Access | Entered Command 57387 | -1/Command | Sensed 1 artifact in vicinity 57636 | -1/Command | First assault squad dispatched 57767 | -1/Command | Spotted M Guard 58009 | -1/Command | Spotted Combat Programmer 58009 | -1/Command | Spotted Combat Programmer 58022 | -1/Command | Destroyed Combat Programmer 58026 | -1/Command | Destroyed Combat Programmer 58049 | -1/Command | Spotted M Guard 58056 | -1/Command | Destroyed M Guard 58066 | -1/Command | Destroyed M Guard 58066 | -1/Command | All MAIN.C guards destroyed 58077 | -1/Command | Found Corrupted Prototype Reactor 58077 | -1/Command | Identified Zero-point Reactor 58078 | -1/Command | System corruption reached 10% 58084 | -1/Command | Found Corrupted Prototype Device 58084 | -1/Command | Identified AEGIS Remote Shield 58095 | -1/Command | Found Corrupted Zero-point Reactor 58098 | -1/Command | Found Corrupted AEGIS Remote Shield 58183 | -1/Command | Met MAIN.C 58192 | -1/Command | 0b10 Conduit disabled 58211 | -1/Command | Destroyed MAIN.C Shell 58212 | -1/Command | MAIN.C activated Command garrisons 58240 | -1/Command | Destroyed MAIN.C 58251 | -1/Command | Discovered new exit (range 38) 58251 | -1/Command | Discovered new exit (range 95) 58251 | -1/Command | Extracted map data and part IDs from MAIN.C's data core 58374 | -1/Command | Found Exp. System Purifier 59173 | -1/Command | Found Zero-point Reactor 59177 | -1/Command | Found Zero-point Reactor 60049 | -1/Command | Found Quantum Capacitor 62898 | -1/Command | Found Corrupted Zero-point Reactor 63319 | -1/Command | Found Corrupted Enh. Gamma Rifle 63438 | -1/Command | Found Corrupted Cld. Nova Cannon 63727 | -1/Command | Found Centrium Heavy Armor Plating 64092 | -1/Command | Found Exp. Targeting Computer 64099 | -1/Command | Found Exp. Targeting Computer 64283 | -1/Command | Found Quantum Capacitor 64903 | -1/Command | Warped through subspace to slip node 64903 | -1/Command | Discovered new exit (range 4) 64912 | -1/Command | Entered Access_0 64913 | -1/Access_0 | Sensed 4 artifacts in vicinity 64914 | -1/Access_0 | Met Architect 64920 | -1/Access_0 | Architect warped through subspace 64920 | -1/Access_0 | Destroyed A8 64958 | -1/Access_0 | Architect warped through subspace 64978 | -1/Access_0 | Subspace Access Node disabled 64994 | -1/Access_0 | Architect warped through subspace 65028 | -1/Access_0 | Architect warped through subspace 65059 | -1/Access_0 | Architect warped through subspace 65108 | -1/Access_0 | Architect warped through subspace 65132 | -1/Access_0 | Architect warped through subspace 65151 | -1/Access_0 | Architect warped through subspace 65173 | -1/Access_0 | Architect warped through subspace 65213 | -1/Access_0 | Architect warped through subspace 65233 | -1/Access_0 | Architect warped through subspace 65243 | -1/Access_0 | Found Corrupted Exp. Phase Shifter 65246 | -1/Access_0 | Architect warped through subspace 65263 | -1/Access_0 | Architect warped through subspace 65271 | -1/Access_0 | A6 warped into view 65279 | -1/Access_0 | Destroyed A6 65293 | -1/Access_0 | Architect warped through subspace 65303 | -1/Access_0 | Subspace Access Node disabled 65313 | -1/Access_0 | Architect warped through subspace 65325 | -1/Access_0 | Architect warped through subspace 65325 | -1/Access_0 | Subspace Access Node disabled 65336 | -1/Access_0 | Subspace Access Node disabled 65346 | -1/Access_0 | Core integrity fell below 50% 65404 | -1/Access_0 | Singularity Gate disabled 65410 | -1/Access_0 | Destroyed Architect 65437 | -1/Access_0 | Found Hpw. Transdimensional Reconstructor 65521 | -1/Access_0 | Found Sigix Corpse 65576 | -1/Access_0 | A5 warped into view 65579 | -1/Access_0 | Destroyed A5 65830 | -1/Access_0 | Found Integrated Reactor 65830 | -1/Access_0 | Installed Integrated Reactor, increased core energy generation (+10) 65940 | -1/Access_0 | Destroyed A2 66124 | -1/Access_0 | Found Integrated Dissipator 66124 | -1/Access_0 | Installed Integrated Dissipator, increased core heat dissipation (+20) 66192 | -1/Access_0 | Found Corrupted Exp. Powered Armor 66195 | -1/Access_0 | Found Corrupted Exp. Powered Armor 66219 | -1/Access_0 | A4 warped into view 66233 | -1/Access_0 | Destroyed A4 66790 | -1/Access_0 | Found Integrity Redistributor 67587 | -1/Access_0 | A3 warped into view 67601 | -1/Access_0 | Destroyed A3 67697 | -1/Access_0 | Found Hpw. Transdimensional Reconstructor 68414 | -1/Access_0 | Warped through subspace to slip node 68414 | -1/Access_0 | Discovered new exit (range 8) 68416 | -1/Access_0 | Warped through subspace to slip node 68417 | -1/Access_0 | Used Integrity Redistributor, redistributed integrity to core (+179) 68427 | -1/Access_0 | Used Subatomic Replicator to replicate Sigix Corpse 68432 | *** | Heading to fleet! Last Messages --------------- Com. HERF Cannon. 68313_ System corrupted: Com. HERF Cannon misfires. 68333_ System corrupted: FCS attempts to trigger Com. HERF Cannon. 68333_ System corrupted: Com. HERF Cannon misfires. 68378_ System corrupted: Substantial component data lost. 68407_ System corrupted: Heat flow error (+109). 68414_ Warped through subspace, drawn to slip node. 68414_ EXIT=FOUND 68416_ Warped through subspace, drawn to slip node. 68417_ Integrity redistributed to core (+179). 68427_ Dropped Sigix Corpse. 68427_ Replicated Sigix Corpse. 68428_ Acquired Sigix Corpse. [Achievement: True Cogmind] Map ----- +----------------------------------------------------+ | | | | | | | | | | | | | | | | | | | | | | | | | | | | | | | | | ???#??????#?#????????????#?#????#?#?#????????????? | | ???????#????#??#?#????#???##??#??#??##?##?#?#????? | | ????##?????#?##???##????#???#?##???#???##??###???? | | ????#?#??????##??#??#?##????#????#??????###??????? | | ????????????????????????#?#?#????#??#?###?##???##? | | ???#??###????#?#?##?#?#?#???##?#?#???##?????#?#??? | | ???##???##???#???????##?###??????#?#?#??#?????#??? | | ???????#?#?###???????#### ##????##??##???##??##??? | | ?#?#?#?#?????#???#????## #?#????#?#?#??###??#??? | | ???##???????##?#???#???# @ #?#???????#??#???###??? | | ?#?#?#?##?#??#??##??#?## ##??##????#?#?##????##? | | ??????#?#??#?????##???# #????#?#?#?????#??#?#?? | | ???#?????#??###???????# ##???????#?????????###?? | | ??#????#???#?#???##?#?## ###?????#??????##?##?#? | | ??#???#????#???##?#???# #????###?#??#???????#?? | | ?#????#??#?#??#???????# ##?????#??#???#?#?#?##?? | | #?#??????#??????####??# < ##?###???##?#?#????#??? | | ??#?????????#??#????#?# ##?#?###????????#??????? | | ????#?#?##?#?????????### #??#??##??##??#???#????? | | ??###????##??##??#????######??????#?????#??##????? | | ?????##??????#?#??####???#??#?#??#??????##?##????? | | ????#?#?#??##?#?##????#??##?#?#?#?####????#?##???? | | ???????#??#???????#????#??????###???#?#?????#????? | | ?????#??##?#???#?????###?????##??????????##??????? | | ???###???##??#??#?#???##?????#????????#??????????? | | ??#???##???#?##???######?##????##?#????#?####????? | | ???????#?#?#??##?????###?#???#??#??#?#???????????? | | ###??#??#?#??#???#??????#???##????#?#????????????? | | ###????#??#????????#?#?#???#??#??#??###?##???????? | | #?##?##?????#??#???#?#?#?????#????##??##???#?????? | | ?#???###?#??#?##???#??????##????#?????##?????????? | | ?#????####?#?#????#?#?##?#?#?##???????#??????????? | | ########????##??##?##?#??###?????????????????????? | | ####?#?####?##?#???##??#???#?#?????#???#?????????? | +----------------------------------------------------+ Best States ------------- Heat Dissipation 139 Coolant Potential 120 Energy Generation 153 Energy Capacity 1350 Matter Stores 300 Matter Capacity 600 Sight Range 23 Robot Scan Range 18 Terrain Scan Range 24 Terrain Scan Density 210 ECM Strength 3 Jamming Range 16 Cloak Strength 4 Additional Mass Support 16 Base Temperature (-) 200 Corruption Containment 12 Corruption Block 20 Armor Coverage 2250 Resistance: KI 30 Resistance: TH 50 Resistance: EX 75 Resistance: EM 100 Core Shielding 40 Power Shielding 90 Propulsion Shielding 66 Utility Shielding 90 Weapon Shielding 66 Phase Shifting 20 Evasion (%) 60 Targeting Accuracy 24 Launcher Accuracy 40 Core Analysis 8 Recoil Reduction 6 Matter Filtering 30 Particle Charging 25 Offensive Hacking 26 Defensive Hacking 14 Authchip Count 1 Trap Extractor Capacity 8 Item Schematics ----------------- None Robot Schematics ------------------ None Fabricated ------------ Plasma Cutter | x2 | -7/Factory | Authchip M-13 Machinist | x1 | -7/Factory | Authchip M-13 Machinist | x1 | -5/Factory Adv. Terrain Scan Processor | x2 | -4/Factory Assault Drone Bay | x1 | -4/Factory Quantum Capacitor | x2 | -3/Testing Alien Tech Used ----------------- Integrated Reactor Dimensional Node Initializer Transdimensional Reconstructor Core Reset Matrix Integrated Dissipator Microwarp Drive LRC Insulator LRC Energy Well High-powered Transdimensional Reconstructor Integrity Redistributor Subatomic Replicator Achievements -------------- True Cogmind Challenges ------------ None Game ------ Seed ThrusterGaussShifter Manual? 0 Play Time 14:39:57 Cumulative 562.2 hours Start 2024.08.23 @ 12:14:16 End 2024.09.01 @ 21:42:50 Sessions 32 Manual Loads 0 Difficulty Rogue Special Mode None Game No. 197 Rogue 197 Adventurer 0 Explorer 0 Win Type 2 Total 25 Types 8/1/6/3/1/0/5/1/0 Lore% 81 Gallery% 90 Achievement% 85 Wizard Run 0 Options --------- Layout 2 ASCII 0 Keyboard 1 Movement Arrows Keybinds 0 Fullscreen 2 Font 24/X11 Map View 50x44 Zoom Use 0% Tactical HUD 1 Map Filters NONE Filters NONE Steam 1 RUN: 870537a6-a4d3-4095-91d8-7a7e120b4ec3